Workbook

Sheet Display
F2: CQG iShares NYSE Semiconductor Index ETF | AB2: =RTD("cqg.rtd", ,"SystemInfo", "Linetime") -> 45845.29022
B5: Exchange Traded Funds Performance | S5: Today's Performance
B6: Symbol | C6: Description | H6: Last | I6: NC | J6: %NC | K6: NC/ATR | L6: Open | M6: High | N6: Low | O6: Volume | Q6: Ratio
B7: SOXX | C7: =RTD("cqg.rtd", ,"ContractData",B7, "LongDescription",, "T") -> iShares PHLX Semiconductor ETF | H7: =RTD("cqg.rtd", ,"ContractData",B7, "LastTradeToday",, "T") ->  | I7: =RTD("cqg.rtd", ,"ContractData",B7, "NetLastTradeToday",, "T") ->  | J7: =IFERROR(RTD("cqg.rtd", ,"ContractData",B7, "PerCentNetLastTrade",, "T")/100,"") ->  | K7: =IFERROR(I7/RTD("cqg.rtd",,"StudyData",B7, "ATR", "MaType=Sim,Period=10", "ATR","D","-1","ALL",,,"FALSE","T")/100,"") ->  | L7: =RTD("cqg.rtd", ,"ContractData",B7, "OPen",, "T") ->  | M7: =RTD("cqg.rtd", ,"ContractData", B7, "HIgh",, "T") ->  | N7: =RTD("cqg.rtd", ,"ContractData",B7, "LOw",, "T") ->  | O7: =RTD("cqg.rtd", ,"ContractData",B7, "T_CVol",, "T") -> 27629 | Q7: =IFERROR(O7/RTD("cqg.rtd",,"StudyData",B7, "MA", "InputChoice=Vol,MAType=Sim,Period=21", "MA","D","-1","all",,,,"T"),"") -> 0.003911387087
B8: SPY | C8: =RTD("cqg.rtd", ,"ContractData",B8, "LongDescription",, "T") -> SPDR S&P 500 | H8: =RTD("cqg.rtd", ,"ContractData",B8, "LastTradeToday",, "T") ->  | I8: =RTD("cqg.rtd", ,"ContractData",B8, "NetLastTradeToday",, "T") ->  | J8: =IFERROR(RTD("cqg.rtd", ,"ContractData",B8, "PerCentNetLastTrade",, "T")/100,"") ->  | K8: =IFERROR(I8/RTD("cqg.rtd",,"StudyData",B8, "ATR", "MaType=Sim,Period=10", "ATR","D","-1","ALL",,,"FALSE","T")/100,"") ->  | L8: =RTD("cqg.rtd", ,"ContractData",B8, "OPen",, "T") ->  | M8: =RTD("cqg.rtd", ,"ContractData", B8, "HIgh",, "T") ->  | N8: =RTD("cqg.rtd", ,"ContractData",B8, "LOw",, "T") ->  | O8: =RTD("cqg.rtd", ,"ContractData",B8, "T_CVol",, "T") -> 325004 | Q8: =IFERROR(O8/RTD("cqg.rtd",,"StudyData",B8, "MA", "InputChoice=Vol,MAType=Sim,Period=21", "MA","D","-1","all",,,,"T"),"") -> 0.004380845692
B9: XLF | C9: =RTD("cqg.rtd", ,"ContractData",B9, "LongDescription",, "T") -> Financial Select Sector SPDR | H9: =RTD("cqg.rtd", ,"ContractData",B9, "LastTradeToday",, "T") ->  | I9: =RTD("cqg.rtd", ,"ContractData",B9, "NetLastTradeToday",, "T") ->  | J9: =IFERROR(RTD("cqg.rtd", ,"ContractData",B9, "PerCentNetLastTrade",, "T")/100,"") ->  | K9: =IFERROR(I9/RTD("cqg.rtd",,"StudyData",B9, "ATR", "MaType=Sim,Period=10", "ATR","D","-1","ALL",,,"FALSE","T")/100,"") ->  | L9: =RTD("cqg.rtd", ,"ContractData",B9, "OPen",, "T") ->  | M9: =RTD("cqg.rtd", ,"ContractData", B9, "HIgh",, "T") ->  | N9: =RTD("cqg.rtd", ,"ContractData",B9, "LOw",, "T") ->  | O9: =RTD("cqg.rtd", ,"ContractData",B9, "T_CVol",, "T") -> 219131 | Q9: =IFERROR(O9/RTD("cqg.rtd",,"StudyData",B9, "MA", "InputChoice=Vol,MAType=Sim,Period=21", "MA","D","-1","all",,,,"T"),"") -> 0.005963903028
B10: S.XLY | C10: =RTD("cqg.rtd", ,"ContractData",B10, "LongDescription",, "T") -> Consumer Discretionary Select SectorSPDR | H10: =RTD("cqg.rtd", ,"ContractData",B10, "LastTradeToday",, "T") ->  | I10: =RTD("cqg.rtd", ,"ContractData",B10, "NetLastTradeToday",, "T") ->  | J10: =IFERROR(RTD("cqg.rtd", ,"ContractData",B10, "PerCentNetLastTrade",, "T")/100,"") ->  | K10: =IFERROR(I10/RTD("cqg.rtd",,"StudyData",B10, "ATR", "MaType=Sim,Period=10", "ATR","D","-1","ALL",,,"FALSE","T")/100,"") ->  | L10: =RTD("cqg.rtd", ,"ContractData",B10, "OPen",, "T") ->  | M10: =RTD("cqg.rtd", ,"ContractData", B10, "HIgh",, "T") ->  | N10: =RTD("cqg.rtd", ,"ContractData",B10, "LOw",, "T") ->  | O10: =RTD("cqg.rtd", ,"ContractData",B10, "T_CVol",, "T") -> 717 | Q10: =IFERROR(O10/RTD("cqg.rtd",,"StudyData",B10, "MA", "InputChoice=Vol,MAType=Sim,Period=21", "MA","D","-1","all",,,,"T"),"") -> 0.0001600521181
B11: S.FXI | C11: =RTD("cqg.rtd", ,"ContractData",B11, "LongDescription",, "T") -> iShares China Large-Cap ETF | H11: =RTD("cqg.rtd", ,"ContractData",B11, "LastTradeToday",, "T") ->  | I11: =RTD("cqg.rtd", ,"ContractData",B11, "NetLastTradeToday",, "T") ->  | J11: =IFERROR(RTD("cqg.rtd", ,"ContractData",B11, "PerCentNetLastTrade",, "T")/100,"") ->  | K11: =IFERROR(I11/RTD("cqg.rtd",,"StudyData",B11, "ATR", "MaType=Sim,Period=10", "ATR","D","-1","ALL",,,"FALSE","T")/100,"") ->  | L11: =RTD("cqg.rtd", ,"ContractData",B11, "OPen",, "T") ->  | M11: =RTD("cqg.rtd", ,"ContractData", B11, "HIgh",, "T") ->  | N11: =RTD("cqg.rtd", ,"ContractData",B11, "LOw",, "T") ->  | O11: =RTD("cqg.rtd", ,"ContractData",B11, "T_CVol",, "T") -> 356468 | Q11: =IFERROR(O11/RTD("cqg.rtd",,"StudyData",B11, "MA", "InputChoice=Vol,MAType=Sim,Period=21", "MA","D","-1","all",,,,"T"),"") -> 0.01142273851
B12: IWF | C12: =RTD("cqg.rtd", ,"ContractData",B12, "LongDescription",, "T") -> iShares Russell 1000 Growth ETF | H12: =RTD("cqg.rtd", ,"ContractData",B12, "LastTradeToday",, "T") ->  | I12: =RTD("cqg.rtd", ,"ContractData",B12, "NetLastTradeToday",, "T") ->  | J12: =IFERROR(RTD("cqg.rtd", ,"ContractData",B12, "PerCentNetLastTrade",, "T")/100,"") ->  | K12: =IFERROR(I12/RTD("cqg.rtd",,"StudyData",B12, "ATR", "MaType=Sim,Period=10", "ATR","D","-1","ALL",,,"FALSE","T")/100,"") ->  | L12: =RTD("cqg.rtd", ,"ContractData",B12, "OPen",, "T") ->  | M12: =RTD("cqg.rtd", ,"ContractData", B12, "HIgh",, "T") ->  | N12: =RTD("cqg.rtd", ,"ContractData",B12, "LOw",, "T") ->  | O12: =RTD("cqg.rtd", ,"ContractData",B12, "T_CVol",, "T") -> 23 | Q12: =IFERROR(O12/RTD("cqg.rtd",,"StudyData",B12, "MA", "InputChoice=Vol,MAType=Sim,Period=21", "MA","D","-1","all",,,,"T"),"") -> 2.06863792e-05
B13: IWO | C13: =RTD("cqg.rtd", ,"ContractData",B13, "LongDescription",, "T") -> iShares Russell 2000 Growth ETF | H13: =RTD("cqg.rtd", ,"ContractData",B13, "LastTradeToday",, "T") ->  | I13: =RTD("cqg.rtd", ,"ContractData",B13, "NetLastTradeToday",, "T") ->  | J13: =IFERROR(RTD("cqg.rtd", ,"ContractData",B13, "PerCentNetLastTrade",, "T")/100,"") ->  | K13: =IFERROR(I13/RTD("cqg.rtd",,"StudyData",B13, "ATR", "MaType=Sim,Period=10", "ATR","D","-1","ALL",,,"FALSE","T")/100,"") ->  | L13: =RTD("cqg.rtd", ,"ContractData",B13, "OPen",, "T") ->  | M13: =RTD("cqg.rtd", ,"ContractData", B13, "HIgh",, "T") ->  | N13: =RTD("cqg.rtd", ,"ContractData",B13, "LOw",, "T") ->  | O13: =RTD("cqg.rtd", ,"ContractData",B13, "T_CVol",, "T") -> 0 | Q13: =IFERROR(O13/RTD("cqg.rtd",,"StudyData",B13, "MA", "InputChoice=Vol,MAType=Sim,Period=21", "MA","D","-1","all",,,,"T"),"") -> 0
B14: EP | C14: =RTD("cqg.rtd", ,"ContractData",B14, "LongDescription",, "T") -> E-Mini S&P 500, Sep 25 | H14: =RTD("cqg.rtd", ,"ContractData",B14, "LastTradeToday",, "T") -> 6310.25 | I14: =RTD("cqg.rtd", ,"ContractData",B14, "NetLastTradeToday",, "T") -> -14 | J14: =IFERROR(RTD("cqg.rtd", ,"ContractData",B14, "PerCentNetLastTrade",, "T")/100,"") -> -0.002213701229 | K14: =IFERROR(I14/RTD("cqg.rtd",,"StudyData",B14, "ATR", "MaType=Sim,Period=10", "ATR","D","-1","ALL",,,"FALSE","T")/100,"") -> -0.002217821782 | L14: =RTD("cqg.rtd", ,"ContractData",B14, "OPen",, "T") -> 6320.75 | M14: =RTD("cqg.rtd", ,"ContractData", B14, "HIgh",, "T") -> 6322.75 | N14: =RTD("cqg.rtd", ,"ContractData",B14, "LOw",, "T") -> 6276.5 | O14: =RTD("cqg.rtd", ,"ContractData",B14, "T_CVol",, "T") -> 94760 | Q14: =IFERROR(O14/RTD("cqg.rtd",,"StudyData",B14, "MA", "InputChoice=Vol,MAType=Sim,Period=21", "MA","D","-1","all",,,,"T"),"") -> 0.06125090655
B15: XLE | C15: =RTD("cqg.rtd", ,"ContractData",B15, "LongDescription",, "T") -> Energy Select Sector SPDR | H15: =RTD("cqg.rtd", ,"ContractData",B15, "LastTradeToday",, "T") ->  | I15: =RTD("cqg.rtd", ,"ContractData",B15, "NetLastTradeToday",, "T") ->  | J15: =IFERROR(RTD("cqg.rtd", ,"ContractData",B15, "PerCentNetLastTrade",, "T")/100,"") ->  | K15: =IFERROR(I15/RTD("cqg.rtd",,"StudyData",B15, "ATR", "MaType=Sim,Period=10", "ATR","D","-1","ALL",,,"FALSE","T")/100,"") ->  | L15: =RTD("cqg.rtd", ,"ContractData",B15, "OPen",, "T") ->  | M15: =RTD("cqg.rtd", ,"ContractData", B15, "HIgh",, "T") ->  | N15: =RTD("cqg.rtd", ,"ContractData",B15, "LOw",, "T") ->  | O15: =RTD("cqg.rtd", ,"ContractData",B15, "T_CVol",, "T") -> 64986 | Q15: =IFERROR(O15/RTD("cqg.rtd",,"StudyData",B15, "MA", "InputChoice=Vol,MAType=Sim,Period=21", "MA","D","-1","all",,,,"T"),"") -> 0.002667612588
B16: USO | C16: =RTD("cqg.rtd", ,"ContractData",B16, "LongDescription",, "T") -> United States Oil Fund | H16: =RTD("cqg.rtd", ,"ContractData",B16, "LastTradeToday",, "T") ->  | I16: =RTD("cqg.rtd", ,"ContractData",B16, "NetLastTradeToday",, "T") ->  | J16: =IFERROR(RTD("cqg.rtd", ,"ContractData",B16, "PerCentNetLastTrade",, "T")/100,"") ->  | K16: =IFERROR(I16/RTD("cqg.rtd",,"StudyData",B16, "ATR", "MaType=Sim,Period=10", "ATR","D","-1","ALL",,,"FALSE","T")/100,"") ->  | L16: =RTD("cqg.rtd", ,"ContractData",B16, "OPen",, "T") ->  | M16: =RTD("cqg.rtd", ,"ContractData", B16, "HIgh",, "T") ->  | N16: =RTD("cqg.rtd", ,"ContractData",B16, "LOw",, "T") ->  | O16: =RTD("cqg.rtd", ,"ContractData",B16, "T_CVol",, "T") -> 59643 | Q16: =IFERROR(O16/RTD("cqg.rtd",,"StudyData",B16, "MA", "InputChoice=Vol,MAType=Sim,Period=21", "MA","D","-1","all",,,,"T"),"") -> 0.003976191025
C17: Description | H17: Last | I17: NC | J17: %NC | K17: NC/ATR | L17: Open | M17: High | N17: Low | O17: Volume | Q17: Ratio
A18: =TRIM(SOXX!O1) ->  | B18: News | C18: =IFERROR(RTD("cqg.rtd", ,"ContractData",A18, "LongDescription",, "T")&" ("&RIGHT(A18,LEN(A18)-5)&")","") ->  | H18: =IFERROR(RTD("cqg.rtd", ,"ContractData",A18, "LastTradeToday",, "T"),"") ->  | I18: =IFERROR(RTD("cqg.rtd", ,"ContractData",A18, "NetLastTradeToday",, "T"),"") ->  | J18: =IFERROR(RTD("cqg.rtd", ,"ContractData",A18, "PerCentNetLastTrade",, "T")/100,"") ->  | K18: =IFERROR(I18/RTD("cqg.rtd",,"StudyData",A18, "ATR", "MaType=Sim,Period=10", "ATR","D","-1","ALL",,,"FALSE","T")/100,"") ->  | L18: =IFERROR(RTD("cqg.rtd", ,"ContractData",A18, "OPen",, "T"),"") ->  | M18: =IFERROR(RTD("cqg.rtd", ,"ContractData", A18, "HIgh",, "T"),"") ->  | N18: =IFERROR(RTD("cqg.rtd", ,"ContractData",A18, "LOw",, "T"),"") ->  | O18: =IFERROR(RTD("cqg.rtd", ,"ContractData",A18, "T_CVol",, "T"),"") ->  | Q18: =IFERROR(O18/RTD("cqg.rtd",,"StudyData",A18, "MA", "InputChoice=Vol,MAType=Sim,Period=21", "MA","D","-1","all",,,,"T"),"") ->  | R18: =SOXX!R1 -> 
A19: =TRIM(SOXX!O2) ->  | B19: News | C19: =IFERROR(RTD("cqg.rtd", ,"ContractData",A19, "LongDescription",, "T")&" ("&RIGHT(A19,LEN(A19)-5)&")","") ->  | H19: =IFERROR(RTD("cqg.rtd", ,"ContractData",A19, "LastTradeToday",, "T"),"") ->  | I19: =IFERROR(RTD("cqg.rtd", ,"ContractData",A19, "NetLastTradeToday",, "T"),"") ->  | J19: =IFERROR(RTD("cqg.rtd", ,"ContractData",A19, "PerCentNetLastTrade",, "T")/100,"") ->  | K19: =IFERROR(I19/RTD("cqg.rtd",,"StudyData",A19, "ATR", "MaType=Sim,Period=10", "ATR","D","-1","ALL",,,"FALSE","T")/100,"") ->  | L19: =IFERROR(RTD("cqg.rtd", ,"ContractData",A19, "OPen",, "T"),"") ->  | M19: =IFERROR(RTD("cqg.rtd", ,"ContractData", A19, "HIgh",, "T"),"") ->  | N19: =IFERROR(RTD("cqg.rtd", ,"ContractData",A19, "LOw",, "T"),"") ->  | O19: =IFERROR(RTD("cqg.rtd", ,"ContractData",A19, "T_CVol",, "T"),"") ->  | Q19: =IFERROR(O19/RTD("cqg.rtd",,"StudyData",A19, "MA", "InputChoice=Vol,MAType=Sim,Period=21", "MA","D","-1","all",,,,"T"),"") ->  | R19: =SOXX!R2 -> 
A20: =TRIM(SOXX!O3) ->  | B20: News | C20: =IFERROR(RTD("cqg.rtd", ,"ContractData",A20, "LongDescription",, "T")&" ("&RIGHT(A20,LEN(A20)-5)&")","") ->  | H20: =IFERROR(RTD("cqg.rtd", ,"ContractData",A20, "LastTradeToday",, "T"),"") ->  | I20: =IFERROR(RTD("cqg.rtd", ,"ContractData",A20, "NetLastTradeToday",, "T"),"") ->  | J20: =IFERROR(RTD("cqg.rtd", ,"ContractData",A20, "PerCentNetLastTrade",, "T")/100,"") ->  | K20: =IFERROR(I20/RTD("cqg.rtd",,"StudyData",A20, "ATR", "MaType=Sim,Period=10", "ATR","D","-1","ALL",,,"FALSE","T")/100,"") ->  | L20: =IFERROR(RTD("cqg.rtd", ,"ContractData",A20, "OPen",, "T"),"") ->  | M20: =IFERROR(RTD("cqg.rtd", ,"ContractData", A20, "HIgh",, "T"),"") ->  | N20: =IFERROR(RTD("cqg.rtd", ,"ContractData",A20, "LOw",, "T"),"") ->  | O20: =IFERROR(RTD("cqg.rtd", ,"ContractData",A20, "T_CVol",, "T"),"") ->  | Q20: =IFERROR(O20/RTD("cqg.rtd",,"StudyData",A20, "MA", "InputChoice=Vol,MAType=Sim,Period=21", "MA","D","-1","all",,,,"T"),"") ->  | R20: =SOXX!R3 -> 
A21: =TRIM(SOXX!O4) ->  | B21: News | C21: =IFERROR(RTD("cqg.rtd", ,"ContractData",A21, "LongDescription",, "T")&" ("&RIGHT(A21,LEN(A21)-5)&")","") ->  | H21: =IFERROR(RTD("cqg.rtd", ,"ContractData",A21, "LastTradeToday",, "T"),"") ->  | I21: =IFERROR(RTD("cqg.rtd", ,"ContractData",A21, "NetLastTradeToday",, "T"),"") ->  | J21: =IFERROR(RTD("cqg.rtd", ,"ContractData",A21, "PerCentNetLastTrade",, "T")/100,"") ->  | K21: =IFERROR(I21/RTD("cqg.rtd",,"StudyData",A21, "ATR", "MaType=Sim,Period=10", "ATR","D","-1","ALL",,,"FALSE","T")/100,"") ->  | L21: =IFERROR(RTD("cqg.rtd", ,"ContractData",A21, "OPen",, "T"),"") ->  | M21: =IFERROR(RTD("cqg.rtd", ,"ContractData", A21, "HIgh",, "T"),"") ->  | N21: =IFERROR(RTD("cqg.rtd", ,"ContractData",A21, "LOw",, "T"),"") ->  | O21: =IFERROR(RTD("cqg.rtd", ,"ContractData",A21, "T_CVol",, "T"),"") ->  | Q21: =IFERROR(O21/RTD("cqg.rtd",,"StudyData",A21, "MA", "InputChoice=Vol,MAType=Sim,Period=21", "MA","D","-1","all",,,,"T"),"") ->  | R21: =SOXX!R4 -> 
A22: =TRIM(SOXX!O5) ->  | B22: News | C22: =IFERROR(RTD("cqg.rtd", ,"ContractData",A22, "LongDescription",, "T")&" ("&RIGHT(A22,LEN(A22)-5)&")","") ->  | H22: =IFERROR(RTD("cqg.rtd", ,"ContractData",A22, "LastTradeToday",, "T"),"") ->  | I22: =IFERROR(RTD("cqg.rtd", ,"ContractData",A22, "NetLastTradeToday",, "T"),"") ->  | J22: =IFERROR(RTD("cqg.rtd", ,"ContractData",A22, "PerCentNetLastTrade",, "T")/100,"") ->  | K22: =IFERROR(I22/RTD("cqg.rtd",,"StudyData",A22, "ATR", "MaType=Sim,Period=10", "ATR","D","-1","ALL",,,"FALSE","T")/100,"") ->  | L22: =IFERROR(RTD("cqg.rtd", ,"ContractData",A22, "OPen",, "T"),"") ->  | M22: =IFERROR(RTD("cqg.rtd", ,"ContractData", A22, "HIgh",, "T"),"") ->  | N22: =IFERROR(RTD("cqg.rtd", ,"ContractData",A22, "LOw",, "T"),"") ->  | O22: =IFERROR(RTD("cqg.rtd", ,"ContractData",A22, "T_CVol",, "T"),"") ->  | Q22: =IFERROR(O22/RTD("cqg.rtd",,"StudyData",A22, "MA", "InputChoice=Vol,MAType=Sim,Period=21", "MA","D","-1","all",,,,"T"),"") ->  | R22: =SOXX!R5 -> 
A23: =TRIM(SOXX!O6) ->  | B23: News | C23: =IFERROR(RTD("cqg.rtd", ,"ContractData",A23, "LongDescription",, "T")&" ("&RIGHT(A23,LEN(A23)-5)&")","") ->  | H23: =IFERROR(RTD("cqg.rtd", ,"ContractData",A23, "LastTradeToday",, "T"),"") ->  | I23: =IFERROR(RTD("cqg.rtd", ,"ContractData",A23, "NetLastTradeToday",, "T"),"") ->  | J23: =IFERROR(RTD("cqg.rtd", ,"ContractData",A23, "PerCentNetLastTrade",, "T")/100,"") ->  | K23: =IFERROR(I23/RTD("cqg.rtd",,"StudyData",A23, "ATR", "MaType=Sim,Period=10", "ATR","D","-1","ALL",,,"FALSE","T")/100,"") ->  | L23: =IFERROR(RTD("cqg.rtd", ,"ContractData",A23, "OPen",, "T"),"") ->  | M23: =IFERROR(RTD("cqg.rtd", ,"ContractData", A23, "HIgh",, "T"),"") ->  | N23: =IFERROR(RTD("cqg.rtd", ,"ContractData",A23, "LOw",, "T"),"") ->  | O23: =IFERROR(RTD("cqg.rtd", ,"ContractData",A23, "T_CVol",, "T"),"") ->  | Q23: =IFERROR(O23/RTD("cqg.rtd",,"StudyData",A23, "MA", "InputChoice=Vol,MAType=Sim,Period=21", "MA","D","-1","all",,,,"T"),"") ->  | R23: =SOXX!R6 -> 
A24: =TRIM(SOXX!O7) ->  | B24: News | C24: =IFERROR(RTD("cqg.rtd", ,"ContractData",A24, "LongDescription",, "T")&" ("&RIGHT(A24,LEN(A24)-5)&")","") ->  | H24: =IFERROR(RTD("cqg.rtd", ,"ContractData",A24, "LastTradeToday",, "T"),"") ->  | I24: =IFERROR(RTD("cqg.rtd", ,"ContractData",A24, "NetLastTradeToday",, "T"),"") ->  | J24: =IFERROR(RTD("cqg.rtd", ,"ContractData",A24, "PerCentNetLastTrade",, "T")/100,"") ->  | K24: =IFERROR(I24/RTD("cqg.rtd",,"StudyData",A24, "ATR", "MaType=Sim,Period=10", "ATR","D","-1","ALL",,,"FALSE","T")/100,"") ->  | L24: =IFERROR(RTD("cqg.rtd", ,"ContractData",A24, "OPen",, "T"),"") ->  | M24: =IFERROR(RTD("cqg.rtd", ,"ContractData", A24, "HIgh",, "T"),"") ->  | N24: =IFERROR(RTD("cqg.rtd", ,"ContractData",A24, "LOw",, "T"),"") ->  | O24: =IFERROR(RTD("cqg.rtd", ,"ContractData",A24, "T_CVol",, "T"),"") ->  | Q24: =IFERROR(O24/RTD("cqg.rtd",,"StudyData",A24, "MA", "InputChoice=Vol,MAType=Sim,Period=21", "MA","D","-1","all",,,,"T"),"") ->  | R24: =SOXX!R7 -> 
A25: =TRIM(SOXX!O8) ->  | B25: News | C25: =IFERROR(RTD("cqg.rtd", ,"ContractData",A25, "LongDescription",, "T")&" ("&RIGHT(A25,LEN(A25)-5)&")","") ->  | H25: =IFERROR(RTD("cqg.rtd", ,"ContractData",A25, "LastTradeToday",, "T"),"") ->  | I25: =IFERROR(RTD("cqg.rtd", ,"ContractData",A25, "NetLastTradeToday",, "T"),"") ->  | J25: =IFERROR(RTD("cqg.rtd", ,"ContractData",A25, "PerCentNetLastTrade",, "T")/100,"") ->  | K25: =IFERROR(I25/RTD("cqg.rtd",,"StudyData",A25, "ATR", "MaType=Sim,Period=10", "ATR","D","-1","ALL",,,"FALSE","T")/100,"") ->  | L25: =IFERROR(RTD("cqg.rtd", ,"ContractData",A25, "OPen",, "T"),"") ->  | M25: =IFERROR(RTD("cqg.rtd", ,"ContractData", A25, "HIgh",, "T"),"") ->  | N25: =IFERROR(RTD("cqg.rtd", ,"ContractData",A25, "LOw",, "T"),"") ->  | O25: =IFERROR(RTD("cqg.rtd", ,"ContractData",A25, "T_CVol",, "T"),"") ->  | Q25: =IFERROR(O25/RTD("cqg.rtd",,"StudyData",A25, "MA", "InputChoice=Vol,MAType=Sim,Period=21", "MA","D","-1","all",,,,"T"),"") ->  | R25: =SOXX!R8 -> 
A26: =TRIM(SOXX!O9) ->  | B26: News | C26: =IFERROR(RTD("cqg.rtd", ,"ContractData",A26, "LongDescription",, "T")&" ("&RIGHT(A26,LEN(A26)-5)&")","") ->  | H26: =IFERROR(RTD("cqg.rtd", ,"ContractData",A26, "LastTradeToday",, "T"),"") ->  | I26: =IFERROR(RTD("cqg.rtd", ,"ContractData",A26, "NetLastTradeToday",, "T"),"") ->  | J26: =IFERROR(RTD("cqg.rtd", ,"ContractData",A26, "PerCentNetLastTrade",, "T")/100,"") ->  | K26: =IFERROR(I26/RTD("cqg.rtd",,"StudyData",A26, "ATR", "MaType=Sim,Period=10", "ATR","D","-1","ALL",,,"FALSE","T")/100,"") ->  | L26: =IFERROR(RTD("cqg.rtd", ,"ContractData",A26, "OPen",, "T"),"") ->  | M26: =IFERROR(RTD("cqg.rtd", ,"ContractData", A26, "HIgh",, "T"),"") ->  | N26: =IFERROR(RTD("cqg.rtd", ,"ContractData",A26, "LOw",, "T"),"") ->  | O26: =IFERROR(RTD("cqg.rtd", ,"ContractData",A26, "T_CVol",, "T"),"") ->  | Q26: =IFERROR(O26/RTD("cqg.rtd",,"StudyData",A26, "MA", "InputChoice=Vol,MAType=Sim,Period=21", "MA","D","-1","all",,,,"T"),"") ->  | R26: =SOXX!R9 -> 
A27: =TRIM(SOXX!O10) ->  | B27: News | C27: =IFERROR(RTD("cqg.rtd", ,"ContractData",A27, "LongDescription",, "T")&" ("&RIGHT(A27,LEN(A27)-5)&")","") ->  | H27: =IFERROR(RTD("cqg.rtd", ,"ContractData",A27, "LastTradeToday",, "T"),"") ->  | I27: =IFERROR(RTD("cqg.rtd", ,"ContractData",A27, "NetLastTradeToday",, "T"),"") ->  | J27: =IFERROR(RTD("cqg.rtd", ,"ContractData",A27, "PerCentNetLastTrade",, "T")/100,"") ->  | K27: =IFERROR(I27/RTD("cqg.rtd",,"StudyData",A27, "ATR", "MaType=Sim,Period=10", "ATR","D","-1","ALL",,,"FALSE","T")/100,"") ->  | L27: =IFERROR(RTD("cqg.rtd", ,"ContractData",A27, "OPen",, "T"),"") ->  | M27: =IFERROR(RTD("cqg.rtd", ,"ContractData", A27, "HIgh",, "T"),"") ->  | N27: =IFERROR(RTD("cqg.rtd", ,"ContractData",A27, "LOw",, "T"),"") ->  | O27: =IFERROR(RTD("cqg.rtd", ,"ContractData",A27, "T_CVol",, "T"),"") ->  | Q27: =IFERROR(O27/RTD("cqg.rtd",,"StudyData",A27, "MA", "InputChoice=Vol,MAType=Sim,Period=21", "MA","D","-1","all",,,,"T"),"") ->  | R27: =SOXX!R10 -> 
A28: =TRIM(SOXX!O11) ->  | B28: News | C28: =IFERROR(RTD("cqg.rtd", ,"ContractData",A28, "LongDescription",, "T")&" ("&RIGHT(A28,LEN(A28)-5)&")","") ->  | H28: =IFERROR(RTD("cqg.rtd", ,"ContractData",A28, "LastTradeToday",, "T"),"") ->  | I28: =IFERROR(RTD("cqg.rtd", ,"ContractData",A28, "NetLastTradeToday",, "T"),"") ->  | J28: =IFERROR(RTD("cqg.rtd", ,"ContractData",A28, "PerCentNetLastTrade",, "T")/100,"") ->  | K28: =IFERROR(I28/RTD("cqg.rtd",,"StudyData",A28, "ATR", "MaType=Sim,Period=10", "ATR","D","-1","ALL",,,"FALSE","T")/100,"") ->  | L28: =IFERROR(RTD("cqg.rtd", ,"ContractData",A28, "OPen",, "T"),"") ->  | M28: =IFERROR(RTD("cqg.rtd", ,"ContractData", A28, "HIgh",, "T"),"") ->  | N28: =IFERROR(RTD("cqg.rtd", ,"ContractData",A28, "LOw",, "T"),"") ->  | O28: =IFERROR(RTD("cqg.rtd", ,"ContractData",A28, "T_CVol",, "T"),"") ->  | Q28: =IFERROR(O28/RTD("cqg.rtd",,"StudyData",A28, "MA", "InputChoice=Vol,MAType=Sim,Period=21", "MA","D","-1","all",,,,"T"),"") ->  | R28: =SOXX!R11 -> 
A29: =TRIM(SOXX!O12) ->  | B29: News | C29: =IFERROR(RTD("cqg.rtd", ,"ContractData",A29, "LongDescription",, "T")&" ("&RIGHT(A29,LEN(A29)-5)&")","") ->  | H29: =IFERROR(RTD("cqg.rtd", ,"ContractData",A29, "LastTradeToday",, "T"),"") ->  | I29: =IFERROR(RTD("cqg.rtd", ,"ContractData",A29, "NetLastTradeToday",, "T"),"") ->  | J29: =IFERROR(RTD("cqg.rtd", ,"ContractData",A29, "PerCentNetLastTrade",, "T")/100,"") ->  | K29: =IFERROR(I29/RTD("cqg.rtd",,"StudyData",A29, "ATR", "MaType=Sim,Period=10", "ATR","D","-1","ALL",,,"FALSE","T")/100,"") ->  | L29: =IFERROR(RTD("cqg.rtd", ,"ContractData",A29, "OPen",, "T"),"") ->  | M29: =IFERROR(RTD("cqg.rtd", ,"ContractData", A29, "HIgh",, "T"),"") ->  | N29: =IFERROR(RTD("cqg.rtd", ,"ContractData",A29, "LOw",, "T"),"") ->  | O29: =IFERROR(RTD("cqg.rtd", ,"ContractData",A29, "T_CVol",, "T"),"") ->  | Q29: =IFERROR(O29/RTD("cqg.rtd",,"StudyData",A29, "MA", "InputChoice=Vol,MAType=Sim,Period=21", "MA","D","-1","all",,,,"T"),"") ->  | R29: =SOXX!R12 -> 
A30: =TRIM(SOXX!O13) ->  | B30: News | C30: =IFERROR(RTD("cqg.rtd", ,"ContractData",A30, "LongDescription",, "T")&" ("&RIGHT(A30,LEN(A30)-5)&")","") ->  | H30: =IFERROR(RTD("cqg.rtd", ,"ContractData",A30, "LastTradeToday",, "T"),"") ->  | I30: =IFERROR(RTD("cqg.rtd", ,"ContractData",A30, "NetLastTradeToday",, "T"),"") ->  | J30: =IFERROR(RTD("cqg.rtd", ,"ContractData",A30, "PerCentNetLastTrade",, "T")/100,"") ->  | K30: =IFERROR(I30/RTD("cqg.rtd",,"StudyData",A30, "ATR", "MaType=Sim,Period=10", "ATR","D","-1","ALL",,,"FALSE","T")/100,"") ->  | L30: =IFERROR(RTD("cqg.rtd", ,"ContractData",A30, "OPen",, "T"),"") ->  | M30: =IFERROR(RTD("cqg.rtd", ,"ContractData", A30, "HIgh",, "T"),"") ->  | N30: =IFERROR(RTD("cqg.rtd", ,"ContractData",A30, "LOw",, "T"),"") ->  | O30: =IFERROR(RTD("cqg.rtd", ,"ContractData",A30, "T_CVol",, "T"),"") ->  | Q30: =IFERROR(O30/RTD("cqg.rtd",,"StudyData",A30, "MA", "InputChoice=Vol,MAType=Sim,Period=21", "MA","D","-1","all",,,,"T"),"") ->  | R30: =SOXX!R13 -> 
A31: =TRIM(SOXX!O14) ->  | B31: News | C31: =IFERROR(RTD("cqg.rtd", ,"ContractData",A31, "LongDescription",, "T")&" ("&RIGHT(A31,LEN(A31)-5)&")","") ->  | H31: =IFERROR(RTD("cqg.rtd", ,"ContractData",A31, "LastTradeToday",, "T"),"") ->  | I31: =IFERROR(RTD("cqg.rtd", ,"ContractData",A31, "NetLastTradeToday",, "T"),"") ->  | J31: =IFERROR(RTD("cqg.rtd", ,"ContractData",A31, "PerCentNetLastTrade",, "T")/100,"") ->  | K31: =IFERROR(I31/RTD("cqg.rtd",,"StudyData",A31, "ATR", "MaType=Sim,Period=10", "ATR","D","-1","ALL",,,"FALSE","T")/100,"") ->  | L31: =IFERROR(RTD("cqg.rtd", ,"ContractData",A31, "OPen",, "T"),"") ->  | M31: =IFERROR(RTD("cqg.rtd", ,"ContractData", A31, "HIgh",, "T"),"") ->  | N31: =IFERROR(RTD("cqg.rtd", ,"ContractData",A31, "LOw",, "T"),"") ->  | O31: =IFERROR(RTD("cqg.rtd", ,"ContractData",A31, "T_CVol",, "T"),"") ->  | Q31: =IFERROR(O31/RTD("cqg.rtd",,"StudyData",A31, "MA", "InputChoice=Vol,MAType=Sim,Period=21", "MA","D","-1","all",,,,"T"),"") ->  | R31: =SOXX!R14 -> 
A32: =TRIM(SOXX!O15) ->  | B32: News | C32: =IFERROR(RTD("cqg.rtd", ,"ContractData",A32, "LongDescription",, "T")&" ("&RIGHT(A32,LEN(A32)-5)&")","") ->  | H32: =IFERROR(RTD("cqg.rtd", ,"ContractData",A32, "LastTradeToday",, "T"),"") ->  | I32: =IFERROR(RTD("cqg.rtd", ,"ContractData",A32, "NetLastTradeToday",, "T"),"") ->  | J32: =IFERROR(RTD("cqg.rtd", ,"ContractData",A32, "PerCentNetLastTrade",, "T")/100,"") ->  | K32: =IFERROR(I32/RTD("cqg.rtd",,"StudyData",A32, "ATR", "MaType=Sim,Period=10", "ATR","D","-1","ALL",,,"FALSE","T")/100,"") ->  | L32: =IFERROR(RTD("cqg.rtd", ,"ContractData",A32, "OPen",, "T"),"") ->  | M32: =IFERROR(RTD("cqg.rtd", ,"ContractData", A32, "HIgh",, "T"),"") ->  | N32: =IFERROR(RTD("cqg.rtd", ,"ContractData",A32, "LOw",, "T"),"") ->  | O32: =IFERROR(RTD("cqg.rtd", ,"ContractData",A32, "T_CVol",, "T"),"") ->  | Q32: =IFERROR(O32/RTD("cqg.rtd",,"StudyData",A32, "MA", "InputChoice=Vol,MAType=Sim,Period=21", "MA","D","-1","all",,,,"T"),"") ->  | R32: =SOXX!R15 -> 
A33: =TRIM(SOXX!O16) ->  | B33: News | C33: =IFERROR(RTD("cqg.rtd", ,"ContractData",A33, "LongDescription",, "T")&" ("&RIGHT(A33,LEN(A33)-5)&")","") ->  | H33: =IFERROR(RTD("cqg.rtd", ,"ContractData",A33, "LastTradeToday",, "T"),"") ->  | I33: =IFERROR(RTD("cqg.rtd", ,"ContractData",A33, "NetLastTradeToday",, "T"),"") ->  | J33: =IFERROR(RTD("cqg.rtd", ,"ContractData",A33, "PerCentNetLastTrade",, "T")/100,"") ->  | K33: =IFERROR(I33/RTD("cqg.rtd",,"StudyData",A33, "ATR", "MaType=Sim,Period=10", "ATR","D","-1","ALL",,,"FALSE","T")/100,"") ->  | L33: =IFERROR(RTD("cqg.rtd", ,"ContractData",A33, "OPen",, "T"),"") ->  | M33: =IFERROR(RTD("cqg.rtd", ,"ContractData", A33, "HIgh",, "T"),"") ->  | N33: =IFERROR(RTD("cqg.rtd", ,"ContractData",A33, "LOw",, "T"),"") ->  | O33: =IFERROR(RTD("cqg.rtd", ,"ContractData",A33, "T_CVol",, "T"),"") ->  | Q33: =IFERROR(O33/RTD("cqg.rtd",,"StudyData",A33, "MA", "InputChoice=Vol,MAType=Sim,Period=21", "MA","D","-1","all",,,,"T"),"") ->  | R33: =SOXX!R16 -> 
A34: =TRIM(SOXX!O17) ->  | B34: News | C34: =IFERROR(RTD("cqg.rtd", ,"ContractData",A34, "LongDescription",, "T")&" ("&RIGHT(A34,LEN(A34)-5)&")","") ->  | H34: =IFERROR(RTD("cqg.rtd", ,"ContractData",A34, "LastTradeToday",, "T"),"") ->  | I34: =IFERROR(RTD("cqg.rtd", ,"ContractData",A34, "NetLastTradeToday",, "T"),"") ->  | J34: =IFERROR(RTD("cqg.rtd", ,"ContractData",A34, "PerCentNetLastTrade",, "T")/100,"") ->  | K34: =IFERROR(I34/RTD("cqg.rtd",,"StudyData",A34, "ATR", "MaType=Sim,Period=10", "ATR","D","-1","ALL",,,"FALSE","T")/100,"") ->  | L34: =IFERROR(RTD("cqg.rtd", ,"ContractData",A34, "OPen",, "T"),"") ->  | M34: =IFERROR(RTD("cqg.rtd", ,"ContractData", A34, "HIgh",, "T"),"") ->  | N34: =IFERROR(RTD("cqg.rtd", ,"ContractData",A34, "LOw",, "T"),"") ->  | O34: =IFERROR(RTD("cqg.rtd", ,"ContractData",A34, "T_CVol",, "T"),"") ->  | Q34: =IFERROR(O34/RTD("cqg.rtd",,"StudyData",A34, "MA", "InputChoice=Vol,MAType=Sim,Period=21", "MA","D","-1","all",,,,"T"),"") ->  | R34: =SOXX!R17 -> 
A35: =TRIM(SOXX!O18) ->  | B35: News | C35: =IFERROR(RTD("cqg.rtd", ,"ContractData",A35, "LongDescription",, "T")&" ("&RIGHT(A35,LEN(A35)-5)&")","") ->  | H35: =IFERROR(RTD("cqg.rtd", ,"ContractData",A35, "LastTradeToday",, "T"),"") ->  | I35: =IFERROR(RTD("cqg.rtd", ,"ContractData",A35, "NetLastTradeToday",, "T"),"") ->  | J35: =IFERROR(RTD("cqg.rtd", ,"ContractData",A35, "PerCentNetLastTrade",, "T")/100,"") ->  | K35: =IFERROR(I35/RTD("cqg.rtd",,"StudyData",A35, "ATR", "MaType=Sim,Period=10", "ATR","D","-1","ALL",,,"FALSE","T")/100,"") ->  | L35: =IFERROR(RTD("cqg.rtd", ,"ContractData",A35, "OPen",, "T"),"") ->  | M35: =IFERROR(RTD("cqg.rtd", ,"ContractData", A35, "HIgh",, "T"),"") ->  | N35: =IFERROR(RTD("cqg.rtd", ,"ContractData",A35, "LOw",, "T"),"") ->  | O35: =IFERROR(RTD("cqg.rtd", ,"ContractData",A35, "T_CVol",, "T"),"") ->  | Q35: =IFERROR(O35/RTD("cqg.rtd",,"StudyData",A35, "MA", "InputChoice=Vol,MAType=Sim,Period=21", "MA","D","-1","all",,,,"T"),"") ->  | R35: =SOXX!R18 -> 
A36: =TRIM(SOXX!O19) ->  | B36: News | C36: =IFERROR(RTD("cqg.rtd", ,"ContractData",A36, "LongDescription",, "T")&" ("&RIGHT(A36,LEN(A36)-5)&")","") ->  | H36: =IFERROR(RTD("cqg.rtd", ,"ContractData",A36, "LastTradeToday",, "T"),"") ->  | I36: =IFERROR(RTD("cqg.rtd", ,"ContractData",A36, "NetLastTradeToday",, "T"),"") ->  | J36: =IFERROR(RTD("cqg.rtd", ,"ContractData",A36, "PerCentNetLastTrade",, "T")/100,"") ->  | K36: =IFERROR(I36/RTD("cqg.rtd",,"StudyData",A36, "ATR", "MaType=Sim,Period=10", "ATR","D","-1","ALL",,,"FALSE","T")/100,"") ->  | L36: =IFERROR(RTD("cqg.rtd", ,"ContractData",A36, "OPen",, "T"),"") ->  | M36: =IFERROR(RTD("cqg.rtd", ,"ContractData", A36, "HIgh",, "T"),"") ->  | N36: =IFERROR(RTD("cqg.rtd", ,"ContractData",A36, "LOw",, "T"),"") ->  | O36: =IFERROR(RTD("cqg.rtd", ,"ContractData",A36, "T_CVol",, "T"),"") ->  | Q36: =IFERROR(O36/RTD("cqg.rtd",,"StudyData",A36, "MA", "InputChoice=Vol,MAType=Sim,Period=21", "MA","D","-1","all",,,,"T"),"") ->  | R36: =SOXX!R19 -> 
A37: =TRIM(SOXX!O20) ->  | B37: News | C37: =IFERROR(RTD("cqg.rtd", ,"ContractData",A37, "LongDescription",, "T")&" ("&RIGHT(A37,LEN(A37)-5)&")","") ->  | H37: =IFERROR(RTD("cqg.rtd", ,"ContractData",A37, "LastTradeToday",, "T"),"") ->  | I37: =IFERROR(RTD("cqg.rtd", ,"ContractData",A37, "NetLastTradeToday",, "T"),"") ->  | J37: =IFERROR(RTD("cqg.rtd", ,"ContractData",A37, "PerCentNetLastTrade",, "T")/100,"") ->  | K37: =IFERROR(I37/RTD("cqg.rtd",,"StudyData",A37, "ATR", "MaType=Sim,Period=10", "ATR","D","-1","ALL",,,"FALSE","T")/100,"") ->  | L37: =IFERROR(RTD("cqg.rtd", ,"ContractData",A37, "OPen",, "T"),"") ->  | M37: =IFERROR(RTD("cqg.rtd", ,"ContractData", A37, "HIgh",, "T"),"") ->  | N37: =IFERROR(RTD("cqg.rtd", ,"ContractData",A37, "LOw",, "T"),"") ->  | O37: =IFERROR(RTD("cqg.rtd", ,"ContractData",A37, "T_CVol",, "T"),"") ->  | Q37: =IFERROR(O37/RTD("cqg.rtd",,"StudyData",A37, "MA", "InputChoice=Vol,MAType=Sim,Period=21", "MA","D","-1","all",,,,"T"),"") ->  | R37: =SOXX!R20 -> 
A38: =TRIM(SOXX!O21) ->  | B38: News | C38: =IFERROR(RTD("cqg.rtd", ,"ContractData",A38, "LongDescription",, "T")&" ("&RIGHT(A38,LEN(A38)-5)&")","") ->  | H38: =IFERROR(RTD("cqg.rtd", ,"ContractData",A38, "LastTradeToday",, "T"),"") ->  | I38: =IFERROR(RTD("cqg.rtd", ,"ContractData",A38, "NetLastTradeToday",, "T"),"") ->  | J38: =IFERROR(RTD("cqg.rtd", ,"ContractData",A38, "PerCentNetLastTrade",, "T")/100,"") ->  | K38: =IFERROR(I38/RTD("cqg.rtd",,"StudyData",A38, "ATR", "MaType=Sim,Period=10", "ATR","D","-1","ALL",,,"FALSE","T")/100,"") ->  | L38: =IFERROR(RTD("cqg.rtd", ,"ContractData",A38, "OPen",, "T"),"") ->  | M38: =IFERROR(RTD("cqg.rtd", ,"ContractData", A38, "HIgh",, "T"),"") ->  | N38: =IFERROR(RTD("cqg.rtd", ,"ContractData",A38, "LOw",, "T"),"") ->  | O38: =IFERROR(RTD("cqg.rtd", ,"ContractData",A38, "T_CVol",, "T"),"") ->  | Q38: =IFERROR(O38/RTD("cqg.rtd",,"StudyData",A38, "MA", "InputChoice=Vol,MAType=Sim,Period=21", "MA","D","-1","all",,,,"T"),"") ->  | R38: =SOXX!R21 -> 
A39: =TRIM(SOXX!O22) ->  | B39: News | C39: =IFERROR(RTD("cqg.rtd", ,"ContractData",A39, "LongDescription",, "T")&" ("&RIGHT(A39,LEN(A39)-5)&")","") ->  | H39: =IFERROR(RTD("cqg.rtd", ,"ContractData",A39, "LastTradeToday",, "T"),"") ->  | I39: =IFERROR(RTD("cqg.rtd", ,"ContractData",A39, "NetLastTradeToday",, "T"),"") ->  | J39: =IFERROR(RTD("cqg.rtd", ,"ContractData",A39, "PerCentNetLastTrade",, "T")/100,"") ->  | K39: =IFERROR(I39/RTD("cqg.rtd",,"StudyData",A39, "ATR", "MaType=Sim,Period=10", "ATR","D","-1","ALL",,,"FALSE","T")/100,"") ->  | L39: =IFERROR(RTD("cqg.rtd", ,"ContractData",A39, "OPen",, "T"),"") ->  | M39: =IFERROR(RTD("cqg.rtd", ,"ContractData", A39, "HIgh",, "T"),"") ->  | N39: =IFERROR(RTD("cqg.rtd", ,"ContractData",A39, "LOw",, "T"),"") ->  | O39: =IFERROR(RTD("cqg.rtd", ,"ContractData",A39, "T_CVol",, "T"),"") ->  | Q39: =IFERROR(O39/RTD("cqg.rtd",,"StudyData",A39, "MA", "InputChoice=Vol,MAType=Sim,Period=21", "MA","D","-1","all",,,,"T"),"") ->  | R39: =SOXX!R22 -> 
A40: =TRIM(SOXX!O23) ->  | B40: News | C40: =IFERROR(RTD("cqg.rtd", ,"ContractData",A40, "LongDescription",, "T")&" ("&RIGHT(A40,LEN(A40)-5)&")","") ->  | H40: =IFERROR(RTD("cqg.rtd", ,"ContractData",A40, "LastTradeToday",, "T"),"") ->  | I40: =IFERROR(RTD("cqg.rtd", ,"ContractData",A40, "NetLastTradeToday",, "T"),"") ->  | J40: =IFERROR(RTD("cqg.rtd", ,"ContractData",A40, "PerCentNetLastTrade",, "T")/100,"") ->  | K40: =IFERROR(I40/RTD("cqg.rtd",,"StudyData",A40, "ATR", "MaType=Sim,Period=10", "ATR","D","-1","ALL",,,"FALSE","T")/100,"") ->  | L40: =IFERROR(RTD("cqg.rtd", ,"ContractData",A40, "OPen",, "T"),"") ->  | M40: =IFERROR(RTD("cqg.rtd", ,"ContractData", A40, "HIgh",, "T"),"") ->  | N40: =IFERROR(RTD("cqg.rtd", ,"ContractData",A40, "LOw",, "T"),"") ->  | O40: =IFERROR(RTD("cqg.rtd", ,"ContractData",A40, "T_CVol",, "T"),"") ->  | Q40: =IFERROR(O40/RTD("cqg.rtd",,"StudyData",A40, "MA", "InputChoice=Vol,MAType=Sim,Period=21", "MA","D","-1","all",,,,"T"),"") ->  | R40: =SOXX!R23 -> 
A41: =TRIM(SOXX!O24) ->  | B41: News | C41: =IFERROR(RTD("cqg.rtd", ,"ContractData",A41, "LongDescription",, "T")&" ("&RIGHT(A41,LEN(A41)-5)&")","") ->  | H41: =IFERROR(RTD("cqg.rtd", ,"ContractData",A41, "LastTradeToday",, "T"),"") ->  | I41: =IFERROR(RTD("cqg.rtd", ,"ContractData",A41, "NetLastTradeToday",, "T"),"") ->  | J41: =IFERROR(RTD("cqg.rtd", ,"ContractData",A41, "PerCentNetLastTrade",, "T")/100,"") ->  | K41: =IFERROR(I41/RTD("cqg.rtd",,"StudyData",A41, "ATR", "MaType=Sim,Period=10", "ATR","D","-1","ALL",,,"FALSE","T")/100,"") ->  | L41: =IFERROR(RTD("cqg.rtd", ,"ContractData",A41, "OPen",, "T"),"") ->  | M41: =IFERROR(RTD("cqg.rtd", ,"ContractData", A41, "HIgh",, "T"),"") ->  | N41: =IFERROR(RTD("cqg.rtd", ,"ContractData",A41, "LOw",, "T"),"") ->  | O41: =IFERROR(RTD("cqg.rtd", ,"ContractData",A41, "T_CVol",, "T"),"") ->  | Q41: =IFERROR(O41/RTD("cqg.rtd",,"StudyData",A41, "MA", "InputChoice=Vol,MAType=Sim,Period=21", "MA","D","-1","all",,,,"T"),"") ->  | R41: =SOXX!R24 -> 
A42: =TRIM(SOXX!O25) ->  | B42: News | C42: =IFERROR(RTD("cqg.rtd", ,"ContractData",A42, "LongDescription",, "T")&" ("&RIGHT(A42,LEN(A42)-5)&")","") ->  | H42: =IFERROR(RTD("cqg.rtd", ,"ContractData",A42, "LastTradeToday",, "T"),"") ->  | I42: =IFERROR(RTD("cqg.rtd", ,"ContractData",A42, "NetLastTradeToday",, "T"),"") ->  | J42: =IFERROR(RTD("cqg.rtd", ,"ContractData",A42, "PerCentNetLastTrade",, "T")/100,"") ->  | K42: =IFERROR(I42/RTD("cqg.rtd",,"StudyData",A42, "ATR", "MaType=Sim,Period=10", "ATR","D","-1","ALL",,,"FALSE","T")/100,"") ->  | L42: =IFERROR(RTD("cqg.rtd", ,"ContractData",A42, "OPen",, "T"),"") ->  | M42: =IFERROR(RTD("cqg.rtd", ,"ContractData", A42, "HIgh",, "T"),"") ->  | N42: =IFERROR(RTD("cqg.rtd", ,"ContractData",A42, "LOw",, "T"),"") ->  | O42: =IFERROR(RTD("cqg.rtd", ,"ContractData",A42, "T_CVol",, "T"),"") ->  | Q42: =IFERROR(O42/RTD("cqg.rtd",,"StudyData",A42, "MA", "InputChoice=Vol,MAType=Sim,Period=21", "MA","D","-1","all",,,,"T"),"") ->  | R42: =SOXX!R25 -> 
A43: =TRIM(SOXX!O26) ->  | B43: News | C43: =IFERROR(RTD("cqg.rtd", ,"ContractData",A43, "LongDescription",, "T")&" ("&RIGHT(A43,LEN(A43)-5)&")","") ->  | H43: =IFERROR(RTD("cqg.rtd", ,"ContractData",A43, "LastTradeToday",, "T"),"") ->  | I43: =IFERROR(RTD("cqg.rtd", ,"ContractData",A43, "NetLastTradeToday",, "T"),"") ->  | J43: =IFERROR(RTD("cqg.rtd", ,"ContractData",A43, "PerCentNetLastTrade",, "T")/100,"") ->  | K43: =IFERROR(I43/RTD("cqg.rtd",,"StudyData",A43, "ATR", "MaType=Sim,Period=10", "ATR","D","-1","ALL",,,"FALSE","T")/100,"") ->  | L43: =IFERROR(RTD("cqg.rtd", ,"ContractData",A43, "OPen",, "T"),"") ->  | M43: =IFERROR(RTD("cqg.rtd", ,"ContractData", A43, "HIgh",, "T"),"") ->  | N43: =IFERROR(RTD("cqg.rtd", ,"ContractData",A43, "LOw",, "T"),"") ->  | O43: =IFERROR(RTD("cqg.rtd", ,"ContractData",A43, "T_CVol",, "T"),"") ->  | Q43: =IFERROR(O43/RTD("cqg.rtd",,"StudyData",A43, "MA", "InputChoice=Vol,MAType=Sim,Period=21", "MA","D","-1","all",,,,"T"),"") ->  | R43: =SOXX!R26 -> 
A44: =TRIM(SOXX!O27) ->  | B44: News | C44: =IFERROR(RTD("cqg.rtd", ,"ContractData",A44, "LongDescription",, "T")&" ("&RIGHT(A44,LEN(A44)-5)&")","") ->  | H44: =IFERROR(RTD("cqg.rtd", ,"ContractData",A44, "LastTradeToday",, "T"),"") ->  | I44: =IFERROR(RTD("cqg.rtd", ,"ContractData",A44, "NetLastTradeToday",, "T"),"") ->  | J44: =IFERROR(RTD("cqg.rtd", ,"ContractData",A44, "PerCentNetLastTrade",, "T")/100,"") ->  | K44: =IFERROR(I44/RTD("cqg.rtd",,"StudyData",A44, "ATR", "MaType=Sim,Period=10", "ATR","D","-1","ALL",,,"FALSE","T")/100,"") ->  | L44: =IFERROR(RTD("cqg.rtd", ,"ContractData",A44, "OPen",, "T"),"") ->  | M44: =IFERROR(RTD("cqg.rtd", ,"ContractData", A44, "HIgh",, "T"),"") ->  | N44: =IFERROR(RTD("cqg.rtd", ,"ContractData",A44, "LOw",, "T"),"") ->  | O44: =IFERROR(RTD("cqg.rtd", ,"ContractData",A44, "T_CVol",, "T"),"") ->  | Q44: =IFERROR(O44/RTD("cqg.rtd",,"StudyData",A44, "MA", "InputChoice=Vol,MAType=Sim,Period=21", "MA","D","-1","all",,,,"T"),"") ->  | R44: =SOXX!R27 -> 
A45: =TRIM(SOXX!O28) ->  | B45: News | C45: =IFERROR(RTD("cqg.rtd", ,"ContractData",A45, "LongDescription",, "T")&" ("&RIGHT(A45,LEN(A45)-5)&")","") ->  | H45: =IFERROR(RTD("cqg.rtd", ,"ContractData",A45, "LastTradeToday",, "T"),"") ->  | I45: =IFERROR(RTD("cqg.rtd", ,"ContractData",A45, "NetLastTradeToday",, "T"),"") ->  | J45: =IFERROR(RTD("cqg.rtd", ,"ContractData",A45, "PerCentNetLastTrade",, "T")/100,"") ->  | K45: =IFERROR(I45/RTD("cqg.rtd",,"StudyData",A45, "ATR", "MaType=Sim,Period=10", "ATR","D","-1","ALL",,,"FALSE","T")/100,"") ->  | L45: =IFERROR(RTD("cqg.rtd", ,"ContractData",A45, "OPen",, "T"),"") ->  | M45: =IFERROR(RTD("cqg.rtd", ,"ContractData", A45, "HIgh",, "T"),"") ->  | N45: =IFERROR(RTD("cqg.rtd", ,"ContractData",A45, "LOw",, "T"),"") ->  | O45: =IFERROR(RTD("cqg.rtd", ,"ContractData",A45, "T_CVol",, "T"),"") ->  | Q45: =IFERROR(O45/RTD("cqg.rtd",,"StudyData",A45, "MA", "InputChoice=Vol,MAType=Sim,Period=21", "MA","D","-1","all",,,,"T"),"") ->  | R45: =SOXX!R28 -> 
A46: =TRIM(SOXX!O29) ->  | B46: News | C46: =IFERROR(RTD("cqg.rtd", ,"ContractData",A46, "LongDescription",, "T")&" ("&RIGHT(A46,LEN(A46)-5)&")","") ->  | H46: =IFERROR(RTD("cqg.rtd", ,"ContractData",A46, "LastTradeToday",, "T"),"") ->  | I46: =IFERROR(RTD("cqg.rtd", ,"ContractData",A46, "NetLastTradeToday",, "T"),"") ->  | J46: =IFERROR(RTD("cqg.rtd", ,"ContractData",A46, "PerCentNetLastTrade",, "T")/100,"") ->  | K46: =IFERROR(I46/RTD("cqg.rtd",,"StudyData",A46, "ATR", "MaType=Sim,Period=10", "ATR","D","-1","ALL",,,"FALSE","T")/100,"") ->  | L46: =IFERROR(RTD("cqg.rtd", ,"ContractData",A46, "OPen",, "T"),"") ->  | M46: =IFERROR(RTD("cqg.rtd", ,"ContractData", A46, "HIgh",, "T"),"") ->  | N46: =IFERROR(RTD("cqg.rtd", ,"ContractData",A46, "LOw",, "T"),"") ->  | O46: =IFERROR(RTD("cqg.rtd", ,"ContractData",A46, "T_CVol",, "T"),"") ->  | Q46: =IFERROR(O46/RTD("cqg.rtd",,"StudyData",A46, "MA", "InputChoice=Vol,MAType=Sim,Period=21", "MA","D","-1","all",,,,"T"),"") ->  | R46: =SOXX!R29 -> 
A47: =TRIM(SOXX!O30) ->  | B47: News | C47: =IFERROR(RTD("cqg.rtd", ,"ContractData",A47, "LongDescription",, "T")&" ("&RIGHT(A47,LEN(A47)-5)&")","") ->  | H47: =IFERROR(RTD("cqg.rtd", ,"ContractData",A47, "LastTradeToday",, "T"),"") ->  | I47: =IFERROR(RTD("cqg.rtd", ,"ContractData",A47, "NetLastTradeToday",, "T"),"") ->  | J47: =IFERROR(RTD("cqg.rtd", ,"ContractData",A47, "PerCentNetLastTrade",, "T")/100,"") ->  | K47: =IFERROR(I47/RTD("cqg.rtd",,"StudyData",A47, "ATR", "MaType=Sim,Period=10", "ATR","D","-1","ALL",,,"FALSE","T")/100,"") ->  | L47: =IFERROR(RTD("cqg.rtd", ,"ContractData",A47, "OPen",, "T"),"") ->  | M47: =IFERROR(RTD("cqg.rtd", ,"ContractData", A47, "HIgh",, "T"),"") ->  | N47: =IFERROR(RTD("cqg.rtd", ,"ContractData",A47, "LOw",, "T"),"") ->  | O47: =IFERROR(RTD("cqg.rtd", ,"ContractData",A47, "T_CVol",, "T"),"") ->  | Q47: =IFERROR(O47/RTD("cqg.rtd",,"StudyData",A47, "MA", "InputChoice=Vol,MAType=Sim,Period=21", "MA","D","-1","all",,,,"T"),"") ->  | R47: =SOXX!R30 -> 
C48: CQG Inc., Copyright © 2025 | G48: Designed by Thom Hartle | J48: The iShares Semiconductor ETF seeks to track the investment results of an index composed of U.S.-listed equities in the semiconductor sector. | Z48: =Z52 -> 100% of the stocks in the ETF are higher today
Z50: =SOXX!B32 -> 1 | AA50: of the stocks in the ETF are higher today
Z51: =SOXX!B32 -> 1 | AA51: of the stocks in the ETF are higher today
Z52: =TEXT(Display!Z51,"0%")&" "&Display!AA51 -> 100% of the stocks in the ETF are higher today

Sheet SOXX (hidden)
A1: S.US.ADI | B1: =IF(J1>0,1,0) -> 1 | C1: S.US.ADI | D1: =RTD("cqg.rtd", ,"ContractData",C1, "LongDescription",, "T") -> Analog Devices Inc | H1: =RTD("cqg.rtd", ,"ContractData",C1, "LastTradeToday",, "T") ->  | I1: =RTD("cqg.rtd", ,"ContractData",C1, "NetLastTradeToday",, "T") ->  | J1: =IFERROR(RTD("cqg.rtd", ,"ContractData",C1, "PerCentNetLastTrade",, "T")/100,"") ->  | K1: =RTD("cqg.rtd", ,"ContractData", C1, "T_CVol",, "T") -> 58 | L1: 1 | M1: =IFERROR(RANK($J1,$J$1:J$30)+COUNTIF($J$1:J1,J1)-1,"") ->  | N1: =C1 -> S.US.ADI | O1: =VLOOKUP($L1,$M$1:$N$30,2,FALSE) ->  | P1: =RTD("cqg.rtd", ,"ContractData",O1, "LongDescription",, "T") ->  | Q1: =IFERROR(RTD("cqg.rtd", ,"ContractData",O1, "PerCentNetLastTrade",, "T")/100,"") ->  | R1: ="https://finance.yahoo.com/quote/"&RIGHT(O1,(LEN(O1)-5)) ->  | T1: =IF(Q1>=0,Q1,NA()) ->  | U1: =IF(Q1>=0,NA(),-1*Q1) ->  | W1: =IFERROR(RTD("cqg.rtd", ,"ContractData",O1, "LongDescription",, "T"),"") ->  | Z1: =IFERROR(T1,Q1) ->  | AA1: =MIN(J1:J31) -> 0 | AB1: =VLOOKUP(AA1,J1:O31,4,FALSE) ->  | AC1: =VLOOKUP($AB1,$M$1:$N$31,2,FALSE) ->  | AD1: =IFERROR(RTD("cqg.rtd", ,"ContractData",AC1, "PerCentNetLastTrade",, "T")/100,"") ->  | AE1: =IFERROR(RTD("cqg.rtd", ,"ContractData",AC1, "LongDescription",, "T"),"") ->  | AF1: =IFERROR(U1,"") ->  | AG1: =IFERROR(AD1*-1,"") ->  | AH1: ="https://finance.yahoo.com/quote/"&RIGHT(AC1,(LEN(AC1)-5)) -> 
A2: S.US.AMAT | B2: =IF(J2>0,1,0) -> 1 | C2: S.US.AMAT | D2: =RTD("cqg.rtd", ,"ContractData",C2, "LongDescription",, "T") -> Applied Materials Inc | H2: =RTD("cqg.rtd", ,"ContractData",C2, "LastTradeToday",, "T") ->  | I2: =RTD("cqg.rtd", ,"ContractData",C2, "NetLastTradeToday",, "T") ->  | J2: =IFERROR(RTD("cqg.rtd", ,"ContractData",C2, "PerCentNetLastTrade",, "T")/100,"") ->  | K2: =RTD("cqg.rtd", ,"ContractData", C2, "T_CVol",, "T") -> 20692 | L2: =L1+1 -> 2 | M2: =IFERROR(RANK($J2,$J$1:J$30)+COUNTIF($J$1:J2,J2)-1,"") ->  | N2: =C2 -> S.US.AMAT | O2: =VLOOKUP($L2,$M$1:$N$30,2,FALSE) ->  | P2: =RTD("cqg.rtd", ,"ContractData",O2, "LongDescription",, "T") ->  | Q2: =IFERROR(RTD("cqg.rtd", ,"ContractData",O2, "PerCentNetLastTrade",, "T")/100,"") ->  | R2: ="https://finance.yahoo.com/quote/"&RIGHT(O2,(LEN(O2)-5)) ->  | T2: =IF(Q2>=0,Q2,NA()) ->  | U2: =IF(Q2>=0,NA(),-1*Q2) ->  | W2: =IFERROR(RTD("cqg.rtd", ,"ContractData",O2, "LongDescription",, "T"),"") ->  | Z2: =IFERROR(T2,Q2) ->  | AB2: =AB1-1 ->  | AD2: =IFERROR(RTD("cqg.rtd", ,"ContractData",AC2, "PerCentNetLastTrade",, "T")/100,"") ->  | AE2: =IFERROR(RTD("cqg.rtd", ,"ContractData",AC2, "LongDescription",, "T"),"") ->  | AF2: =IFERROR(U2,"") ->  | AG2: =IFERROR(AD2*-1,"") ->  | AH2: ="https://finance.yahoo.com/quote/"&RIGHT(AC2,(LEN(AC2)-5)) -> 
A3: S.US.AMD | B3: 1 | C3: S.US.AMD | D3: =RTD("cqg.rtd", ,"ContractData",C3, "LongDescription",, "T") -> Advanced Micro Devices | H3: =RTD("cqg.rtd", ,"ContractData",C3, "LastTradeToday",, "T") ->  | I3: =RTD("cqg.rtd", ,"ContractData",C3, "NetLastTradeToday",, "T") ->  | J3: =IFERROR(RTD("cqg.rtd", ,"ContractData",C3, "PerCentNetLastTrade",, "T")/100,"") ->  | K3: =RTD("cqg.rtd", ,"ContractData", C3, "T_CVol",, "T") -> 291914 | L3: =L2+1 -> 3 | M3: =IFERROR(RANK($J3,$J$1:J$30)+COUNTIF($J$1:J3,J3)-1,"") ->  | N3: S.US.AMD | P3: =RTD("cqg.rtd", ,"ContractData",O3, "LongDescription",, "T") ->  | Q3: =IFERROR(RTD("cqg.rtd", ,"ContractData",O3, "PerCentNetLastTrade",, "T")/100,"") ->  | W3: =IFERROR(RTD("cqg.rtd", ,"ContractData",O3, "LongDescription",, "T"),"") ->  | AB3: =AB2-1 ->  | AD3: =IFERROR(RTD("cqg.rtd", ,"ContractData",AC3, "PerCentNetLastTrade",, "T")/100,"") ->  | AE3: =IFERROR(RTD("cqg.rtd", ,"ContractData",AC3, "LongDescription",, "T"),"") -> 
A4: S.US.ARM | B4: 1 | C4: S.US.ARM | D4: =RTD("cqg.rtd", ,"ContractData",C4, "LongDescription",, "T") -> Arm Holdings plc | H4: =RTD("cqg.rtd", ,"ContractData",C4, "LastTradeToday",, "T") ->  | I4: =RTD("cqg.rtd", ,"ContractData",C4, "NetLastTradeToday",, "T") ->  | J4: =IFERROR(RTD("cqg.rtd", ,"ContractData",C4, "PerCentNetLastTrade",, "T")/100,"") ->  | K4: =RTD("cqg.rtd", ,"ContractData", C4, "T_CVol",, "T") -> 12671 | L4: 4 | M4: =IFERROR(RANK($J4,$J$1:J$30)+COUNTIF($J$1:J4,J4)-1,"") ->  | N4: S.US.ARM | P4: =RTD("cqg.rtd", ,"ContractData",O4, "LongDescription",, "T") ->  | Q4: =IFERROR(RTD("cqg.rtd", ,"ContractData",O4, "PerCentNetLastTrade",, "T")/100,"") ->  | W4: =IFERROR(RTD("cqg.rtd", ,"ContractData",O4, "LongDescription",, "T"),"") ->  | AD4: =IFERROR(RTD("cqg.rtd", ,"ContractData",AC4, "PerCentNetLastTrade",, "T")/100,"") ->  | AE4: =IFERROR(RTD("cqg.rtd", ,"ContractData",AC4, "LongDescription",, "T"),"") -> 
A5: S.US.ASML | B5: 1 | C5: S.US.ASML | D5: =RTD("cqg.rtd", ,"ContractData",C5, "LongDescription",, "T") -> ASML Holding NV NY Reg Shs | H5: =RTD("cqg.rtd", ,"ContractData",C5, "LastTradeToday",, "T") ->  | I5: =RTD("cqg.rtd", ,"ContractData",C5, "NetLastTradeToday",, "T") ->  | J5: =IFERROR(RTD("cqg.rtd", ,"ContractData",C5, "PerCentNetLastTrade",, "T")/100,"") ->  | K5: =RTD("cqg.rtd", ,"ContractData", C5, "T_CVol",, "T") -> 19985 | L5: 5 | M5: =IFERROR(RANK($J5,$J$1:J$30)+COUNTIF($J$1:J5,J5)-1,"") ->  | N5: S.US.ASML | P5: =RTD("cqg.rtd", ,"ContractData",O5, "LongDescription",, "T") ->  | Q5: =IFERROR(RTD("cqg.rtd", ,"ContractData",O5, "PerCentNetLastTrade",, "T")/100,"") ->  | W5: =IFERROR(RTD("cqg.rtd", ,"ContractData",O5, "LongDescription",, "T"),"") ->  | AD5: =IFERROR(RTD("cqg.rtd", ,"ContractData",AC5, "PerCentNetLastTrade",, "T")/100,"") ->  | AE5: =IFERROR(RTD("cqg.rtd", ,"ContractData",AC5, "LongDescription",, "T"),"") -> 
A6: S.US.ASX | B6: 1 | C6: S.US.ASX | D6: =RTD("cqg.rtd", ,"ContractData",C6, "LongDescription",, "T") -> ASE Technology Holding Co., Ltd. | H6: =RTD("cqg.rtd", ,"ContractData",C6, "LastTradeToday",, "T") ->  | I6: =RTD("cqg.rtd", ,"ContractData",C6, "NetLastTradeToday",, "T") ->  | J6: =IFERROR(RTD("cqg.rtd", ,"ContractData",C6, "PerCentNetLastTrade",, "T")/100,"") ->  | K6: =RTD("cqg.rtd", ,"ContractData", C6, "T_CVol",, "T") -> 35 | L6: 6 | M6: =IFERROR(RANK($J6,$J$1:J$30)+COUNTIF($J$1:J6,J6)-1,"") ->  | N6: S.US.ASX | P6: =RTD("cqg.rtd", ,"ContractData",O6, "LongDescription",, "T") ->  | Q6: =IFERROR(RTD("cqg.rtd", ,"ContractData",O6, "PerCentNetLastTrade",, "T")/100,"") ->  | W6: =IFERROR(RTD("cqg.rtd", ,"ContractData",O6, "LongDescription",, "T"),"") ->  | AD6: =IFERROR(RTD("cqg.rtd", ,"ContractData",AC6, "PerCentNetLastTrade",, "T")/100,"") ->  | AE6: =IFERROR(RTD("cqg.rtd", ,"ContractData",AC6, "LongDescription",, "T"),"") -> 
A7: S.US.AVGO | B7: 1 | C7: S.US.AVGO | D7: =RTD("cqg.rtd", ,"ContractData",C7, "LongDescription",, "T") -> Broadcom Inc. | H7: =RTD("cqg.rtd", ,"ContractData",C7, "LastTradeToday",, "T") ->  | I7: =RTD("cqg.rtd", ,"ContractData",C7, "NetLastTradeToday",, "T") ->  | J7: =IFERROR(RTD("cqg.rtd", ,"ContractData",C7, "PerCentNetLastTrade",, "T")/100,"") ->  | K7: =RTD("cqg.rtd", ,"ContractData", C7, "T_CVol",, "T") -> 49911 | L7: 7 | M7: =IFERROR(RANK($J7,$J$1:J$30)+COUNTIF($J$1:J7,J7)-1,"") ->  | N7: S.US.AVGO | P7: =RTD("cqg.rtd", ,"ContractData",O7, "LongDescription",, "T") ->  | Q7: =IFERROR(RTD("cqg.rtd", ,"ContractData",O7, "PerCentNetLastTrade",, "T")/100,"") ->  | W7: =IFERROR(RTD("cqg.rtd", ,"ContractData",O7, "LongDescription",, "T"),"") ->  | AD7: =IFERROR(RTD("cqg.rtd", ,"ContractData",AC7, "PerCentNetLastTrade",, "T")/100,"") ->  | AE7: =IFERROR(RTD("cqg.rtd", ,"ContractData",AC7, "LongDescription",, "T"),"") -> 
A8: S.US.ENTG | B8: 1 | C8: S.US.ENTG | D8: =RTD("cqg.rtd", ,"ContractData",C8, "LongDescription",, "T") -> Entegris Inc | H8: =RTD("cqg.rtd", ,"ContractData",C8, "LastTradeToday",, "T") ->  | I8: =RTD("cqg.rtd", ,"ContractData",C8, "NetLastTradeToday",, "T") ->  | J8: =IFERROR(RTD("cqg.rtd", ,"ContractData",C8, "PerCentNetLastTrade",, "T")/100,"") ->  | K8: =RTD("cqg.rtd", ,"ContractData", C8, "T_CVol",, "T") -> 66 | L8: 8 | M8: =IFERROR(RANK($J8,$J$1:J$30)+COUNTIF($J$1:J8,J8)-1,"") ->  | N8: S.US.ENTG | P8: =RTD("cqg.rtd", ,"ContractData",O8, "LongDescription",, "T") ->  | Q8: =IFERROR(RTD("cqg.rtd", ,"ContractData",O8, "PerCentNetLastTrade",, "T")/100,"") ->  | W8: =IFERROR(RTD("cqg.rtd", ,"ContractData",O8, "LongDescription",, "T"),"") ->  | AD8: =IFERROR(RTD("cqg.rtd", ,"ContractData",AC8, "PerCentNetLastTrade",, "T")/100,"") ->  | AE8: =IFERROR(RTD("cqg.rtd", ,"ContractData",AC8, "LongDescription",, "T"),"") -> 
A9: S.US.INTC | B9: 1 | C9: S.US.INTC | D9: =RTD("cqg.rtd", ,"ContractData",C9, "LongDescription",, "T") -> Intel Corporation | H9: =RTD("cqg.rtd", ,"ContractData",C9, "LastTradeToday",, "T") ->  | I9: =RTD("cqg.rtd", ,"ContractData",C9, "NetLastTradeToday",, "T") ->  | J9: =IFERROR(RTD("cqg.rtd", ,"ContractData",C9, "PerCentNetLastTrade",, "T")/100,"") ->  | K9: =RTD("cqg.rtd", ,"ContractData", C9, "T_CVol",, "T") -> 342583 | L9: 9 | M9: =IFERROR(RANK($J9,$J$1:J$30)+COUNTIF($J$1:J9,J9)-1,"") ->  | N9: S.US.INTC | P9: =RTD("cqg.rtd", ,"ContractData",O9, "LongDescription",, "T") ->  | Q9: =IFERROR(RTD("cqg.rtd", ,"ContractData",O9, "PerCentNetLastTrade",, "T")/100,"") ->  | W9: =IFERROR(RTD("cqg.rtd", ,"ContractData",O9, "LongDescription",, "T"),"") ->  | AD9: =IFERROR(RTD("cqg.rtd", ,"ContractData",AC9, "PerCentNetLastTrade",, "T")/100,"") ->  | AE9: =IFERROR(RTD("cqg.rtd", ,"ContractData",AC9, "LongDescription",, "T"),"") -> 
A10: S.US.KLAC | B10: 1 | C10: S.US.KLAC | D10: =RTD("cqg.rtd", ,"ContractData",C10, "LongDescription",, "T") -> KLA Corporation | H10: =RTD("cqg.rtd", ,"ContractData",C10, "LastTradeToday",, "T") ->  | I10: =RTD("cqg.rtd", ,"ContractData",C10, "NetLastTradeToday",, "T") ->  | J10: =IFERROR(RTD("cqg.rtd", ,"ContractData",C10, "PerCentNetLastTrade",, "T")/100,"") ->  | K10: =RTD("cqg.rtd", ,"ContractData", C10, "T_CVol",, "T") -> 1222 | L10: 10 | M10: =IFERROR(RANK($J10,$J$1:J$30)+COUNTIF($J$1:J10,J10)-1,"") ->  | N10: S.US.KLAC | P10: =RTD("cqg.rtd", ,"ContractData",O10, "LongDescription",, "T") ->  | Q10: =IFERROR(RTD("cqg.rtd", ,"ContractData",O10, "PerCentNetLastTrade",, "T")/100,"") ->  | W10: =IFERROR(RTD("cqg.rtd", ,"ContractData",O10, "LongDescription",, "T"),"") ->  | AD10: =IFERROR(RTD("cqg.rtd", ,"ContractData",AC10, "PerCentNetLastTrade",, "T")/100,"") ->  | AE10: =IFERROR(RTD("cqg.rtd", ,"ContractData",AC10, "LongDescription",, "T"),"") -> 
A11: S.US.LRCX | B11: 1 | C11: S.US.LRCX | D11: =RTD("cqg.rtd", ,"ContractData",C11, "LongDescription",, "T") -> LAM Research Corporation | H11: =RTD("cqg.rtd", ,"ContractData",C11, "LastTradeToday",, "T") ->  | I11: =RTD("cqg.rtd", ,"ContractData",C11, "NetLastTradeToday",, "T") ->  | J11: =IFERROR(RTD("cqg.rtd", ,"ContractData",C11, "PerCentNetLastTrade",, "T")/100,"") ->  | K11: =RTD("cqg.rtd", ,"ContractData", C11, "T_CVol",, "T") -> 8917 | L11: 11 | M11: =IFERROR(RANK($J11,$J$1:J$30)+COUNTIF($J$1:J11,J11)-1,"") ->  | N11: S.US.LRCX | P11: =RTD("cqg.rtd", ,"ContractData",O11, "LongDescription",, "T") ->  | Q11: =IFERROR(RTD("cqg.rtd", ,"ContractData",O11, "PerCentNetLastTrade",, "T")/100,"") ->  | W11: =IFERROR(RTD("cqg.rtd", ,"ContractData",O11, "LongDescription",, "T"),"") ->  | AD11: =IFERROR(RTD("cqg.rtd", ,"ContractData",AC11, "PerCentNetLastTrade",, "T")/100,"") ->  | AE11: =IFERROR(RTD("cqg.rtd", ,"ContractData",AC11, "LongDescription",, "T"),"") -> 
A12: S.US.LSCC | B12: 1 | C12: S.US.LSCC | D12: =RTD("cqg.rtd", ,"ContractData",C12, "LongDescription",, "T") -> Lattice Semiconductor | H12: =RTD("cqg.rtd", ,"ContractData",C12, "LastTradeToday",, "T") ->  | I12: =RTD("cqg.rtd", ,"ContractData",C12, "NetLastTradeToday",, "T") ->  | J12: =IFERROR(RTD("cqg.rtd", ,"ContractData",C12, "PerCentNetLastTrade",, "T")/100,"") ->  | K12: =RTD("cqg.rtd", ,"ContractData", C12, "T_CVol",, "T") -> 325 | L12: 12 | M12: =IFERROR(RANK($J12,$J$1:J$30)+COUNTIF($J$1:J12,J12)-1,"") ->  | N12: S.US.LSCC | P12: =RTD("cqg.rtd", ,"ContractData",O12, "LongDescription",, "T") ->  | Q12: =IFERROR(RTD("cqg.rtd", ,"ContractData",O12, "PerCentNetLastTrade",, "T")/100,"") ->  | W12: =IFERROR(RTD("cqg.rtd", ,"ContractData",O12, "LongDescription",, "T"),"") ->  | AD12: =IFERROR(RTD("cqg.rtd", ,"ContractData",AC12, "PerCentNetLastTrade",, "T")/100,"") ->  | AE12: =IFERROR(RTD("cqg.rtd", ,"ContractData",AC12, "LongDescription",, "T"),"") -> 
A13: S.US.MCHP | B13: 1 | C13: S.US.MCHP | D13: =RTD("cqg.rtd", ,"ContractData",C13, "LongDescription",, "T") -> Microchip Technology Inc | H13: =RTD("cqg.rtd", ,"ContractData",C13, "LastTradeToday",, "T") ->  | I13: =RTD("cqg.rtd", ,"ContractData",C13, "NetLastTradeToday",, "T") ->  | J13: =IFERROR(RTD("cqg.rtd", ,"ContractData",C13, "PerCentNetLastTrade",, "T")/100,"") ->  | K13: =RTD("cqg.rtd", ,"ContractData", C13, "T_CVol",, "T") -> 3106 | L13: 13 | M13: =IFERROR(RANK($J13,$J$1:J$30)+COUNTIF($J$1:J13,J13)-1,"") ->  | N13: S.US.MCHP | P13: =RTD("cqg.rtd", ,"ContractData",O13, "LongDescription",, "T") ->  | Q13: =IFERROR(RTD("cqg.rtd", ,"ContractData",O13, "PerCentNetLastTrade",, "T")/100,"") ->  | W13: =IFERROR(RTD("cqg.rtd", ,"ContractData",O13, "LongDescription",, "T"),"") ->  | AD13: =IFERROR(RTD("cqg.rtd", ,"ContractData",AC13, "PerCentNetLastTrade",, "T")/100,"") ->  | AE13: =IFERROR(RTD("cqg.rtd", ,"ContractData",AC13, "LongDescription",, "T"),"") -> 
A14: S.US.MKSI | B14: 1 | C14: S.US.MKSI | D14: =RTD("cqg.rtd", ,"ContractData",C14, "LongDescription",, "T") -> MKS Inc. | H14: =RTD("cqg.rtd", ,"ContractData",C14, "LastTradeToday",, "T") ->  | I14: =RTD("cqg.rtd", ,"ContractData",C14, "NetLastTradeToday",, "T") ->  | J14: =IFERROR(RTD("cqg.rtd", ,"ContractData",C14, "PerCentNetLastTrade",, "T")/100,"") ->  | K14: =RTD("cqg.rtd", ,"ContractData", C14, "T_CVol",, "T") -> 1 | L14: 14 | M14: =IFERROR(RANK($J14,$J$1:J$30)+COUNTIF($J$1:J14,J14)-1,"") ->  | N14: S.US.MKSI | P14: =RTD("cqg.rtd", ,"ContractData",O14, "LongDescription",, "T") ->  | Q14: =IFERROR(RTD("cqg.rtd", ,"ContractData",O14, "PerCentNetLastTrade",, "T")/100,"") ->  | W14: =IFERROR(RTD("cqg.rtd", ,"ContractData",O14, "LongDescription",, "T"),"") ->  | AD14: =IFERROR(RTD("cqg.rtd", ,"ContractData",AC14, "PerCentNetLastTrade",, "T")/100,"") ->  | AE14: =IFERROR(RTD("cqg.rtd", ,"ContractData",AC14, "LongDescription",, "T"),"") -> 
A15: S.US.MPWR | B15: 1 | C15: S.US.MPWR | D15: =RTD("cqg.rtd", ,"ContractData",C15, "LongDescription",, "T") -> Monolithic Power Systems Inc | H15: =RTD("cqg.rtd", ,"ContractData",C15, "LastTradeToday",, "T") ->  | I15: =RTD("cqg.rtd", ,"ContractData",C15, "NetLastTradeToday",, "T") ->  | J15: =IFERROR(RTD("cqg.rtd", ,"ContractData",C15, "PerCentNetLastTrade",, "T")/100,"") ->  | K15: =RTD("cqg.rtd", ,"ContractData", C15, "T_CVol",, "T") -> 104 | L15: 15 | M15: =IFERROR(RANK($J15,$J$1:J$30)+COUNTIF($J$1:J15,J15)-1,"") ->  | N15: =C15 -> S.US.MPWR | P15: =RTD("cqg.rtd", ,"ContractData",O15, "LongDescription",, "T") ->  | Q15: =IFERROR(RTD("cqg.rtd", ,"ContractData",O15, "PerCentNetLastTrade",, "T")/100,"") ->  | W15: =IFERROR(RTD("cqg.rtd", ,"ContractData",O15, "LongDescription",, "T"),"") ->  | AD15: =IFERROR(RTD("cqg.rtd", ,"ContractData",AC15, "PerCentNetLastTrade",, "T")/100,"") ->  | AE15: =IFERROR(RTD("cqg.rtd", ,"ContractData",AC15, "LongDescription",, "T"),"") -> 
A16: S.US.MRVL | B16: 1 | C16: S.US.MRVL | D16: =RTD("cqg.rtd", ,"ContractData",C16, "LongDescription",, "T") -> Marvell Technology, Inc. | H16: =RTD("cqg.rtd", ,"ContractData",C16, "LastTradeToday",, "T") ->  | I16: =RTD("cqg.rtd", ,"ContractData",C16, "NetLastTradeToday",, "T") ->  | J16: =IFERROR(RTD("cqg.rtd", ,"ContractData",C16, "PerCentNetLastTrade",, "T")/100,"") ->  | K16: =RTD("cqg.rtd", ,"ContractData", C16, "T_CVol",, "T") -> 79514 | L16: 16 | M16: =IFERROR(RANK($J16,$J$1:J$30)+COUNTIF($J$1:J16,J16)-1,"") ->  | N16: S.US.MRVL | P16: =RTD("cqg.rtd", ,"ContractData",O16, "LongDescription",, "T") ->  | Q16: =IFERROR(RTD("cqg.rtd", ,"ContractData",O16, "PerCentNetLastTrade",, "T")/100,"") ->  | R16: ="https://finance.yahoo.com/quote/"&RIGHT(O16,(LEN(O16)-5)) ->  | T16: =IF(Q16>=0,Q16,NA()) ->  | U16: =IF(Q16>=0,NA(),-1*Q16) -> 
A17: S.US.MU | B17: 1 | C17: S.US.MU | D17: =RTD("cqg.rtd", ,"ContractData",C17, "LongDescription",, "T") -> Micron Technology Inc | H17: =RTD("cqg.rtd", ,"ContractData",C17, "LastTradeToday",, "T") ->  | I17: =RTD("cqg.rtd", ,"ContractData",C17, "NetLastTradeToday",, "T") ->  | J17: =IFERROR(RTD("cqg.rtd", ,"ContractData",C17, "PerCentNetLastTrade",, "T")/100,"") ->  | K17: =RTD("cqg.rtd", ,"ContractData", C17, "T_CVol",, "T") -> 91507 | L17: 17 | M17: =IFERROR(RANK($J17,$J$1:J$30)+COUNTIF($J$1:J17,J17)-1,"") ->  | N17: S.US.MU | P17: =RTD("cqg.rtd", ,"ContractData",O17, "LongDescription",, "T") ->  | Q17: =IFERROR(RTD("cqg.rtd", ,"ContractData",O17, "PerCentNetLastTrade",, "T")/100,"") -> 
A18: S.US.NVDA | B18: 1 | C18: S.US.NVDA | D18: =RTD("cqg.rtd", ,"ContractData",C18, "LongDescription",, "T") -> NVIDIA Corp | H18: =RTD("cqg.rtd", ,"ContractData",C18, "LastTradeToday",, "T") ->  | I18: =RTD("cqg.rtd", ,"ContractData",C18, "NetLastTradeToday",, "T") ->  | J18: =IFERROR(RTD("cqg.rtd", ,"ContractData",C18, "PerCentNetLastTrade",, "T")/100,"") ->  | K18: =RTD("cqg.rtd", ,"ContractData", C18, "T_CVol",, "T") -> 1594628 | L18: 18 | M18: =IFERROR(RANK($J18,$J$1:J$30)+COUNTIF($J$1:J18,J18)-1,"") ->  | N18: S.US.NVDA | P18: =RTD("cqg.rtd", ,"ContractData",O18, "LongDescription",, "T") ->  | Q18: =IFERROR(RTD("cqg.rtd", ,"ContractData",O18, "PerCentNetLastTrade",, "T")/100,"") -> 
A19: S.US.NXPI | B19: 1 | C19: S.US.NXPI | D19: =RTD("cqg.rtd", ,"ContractData",C19, "LongDescription",, "T") -> NXP Semiconductors N.V. | H19: =RTD("cqg.rtd", ,"ContractData",C19, "LastTradeToday",, "T") ->  | I19: =RTD("cqg.rtd", ,"ContractData",C19, "NetLastTradeToday",, "T") ->  | J19: =IFERROR(RTD("cqg.rtd", ,"ContractData",C19, "PerCentNetLastTrade",, "T")/100,"") ->  | K19: =RTD("cqg.rtd", ,"ContractData", C19, "T_CVol",, "T") -> 103 | L19: 19 | M19: =IFERROR(RANK($J19,$J$1:J$30)+COUNTIF($J$1:J19,J19)-1,"") ->  | N19: S.US.NXPI | P19: =RTD("cqg.rtd", ,"ContractData",O19, "LongDescription",, "T") ->  | Q19: =IFERROR(RTD("cqg.rtd", ,"ContractData",O19, "PerCentNetLastTrade",, "T")/100,"") -> 
A20: S.US.OLED | B20: 1 | C20: S.US.OLED | D20: =RTD("cqg.rtd", ,"ContractData",C20, "LongDescription",, "T") -> Universal Display Corporation | H20: =RTD("cqg.rtd", ,"ContractData",C20, "LastTradeToday",, "T") ->  | I20: =RTD("cqg.rtd", ,"ContractData",C20, "NetLastTradeToday",, "T") ->  | J20: =IFERROR(RTD("cqg.rtd", ,"ContractData",C20, "PerCentNetLastTrade",, "T")/100,"") ->  | K20: =RTD("cqg.rtd", ,"ContractData", C20, "T_CVol",, "T") -> 154 | L20: 20 | M20: =IFERROR(RANK($J20,$J$1:J$30)+COUNTIF($J$1:J20,J20)-1,"") ->  | N20: S.US.OLED | P20: =RTD("cqg.rtd", ,"ContractData",O20, "LongDescription",, "T") ->  | Q20: =IFERROR(RTD("cqg.rtd", ,"ContractData",O20, "PerCentNetLastTrade",, "T")/100,"") -> 
A21: S.US.ON | B21: 1 | C21: S.US.ON | D21: =RTD("cqg.rtd", ,"ContractData",C21, "LongDescription",, "T") -> ON Semiconductor Corp | H21: =RTD("cqg.rtd", ,"ContractData",C21, "LastTradeToday",, "T") ->  | I21: =RTD("cqg.rtd", ,"ContractData",C21, "NetLastTradeToday",, "T") ->  | J21: =IFERROR(RTD("cqg.rtd", ,"ContractData",C21, "PerCentNetLastTrade",, "T")/100,"") ->  | K21: =RTD("cqg.rtd", ,"ContractData", C21, "T_CVol",, "T") -> 6884 | L21: 21 | M21: =IFERROR(RANK($J21,$J$1:J$30)+COUNTIF($J$1:J21,J21)-1,"") ->  | N21: S.US.ON | P21: =RTD("cqg.rtd", ,"ContractData",O21, "LongDescription",, "T") ->  | Q21: =IFERROR(RTD("cqg.rtd", ,"ContractData",O21, "PerCentNetLastTrade",, "T")/100,"") -> 
A22: S.US.ONTO | B22: 1 | C22: S.US.ONTO | D22: =RTD("cqg.rtd", ,"ContractData",C22, "LongDescription",, "T") -> Onto Innovation Inc. | H22: =RTD("cqg.rtd", ,"ContractData",C22, "LastTradeToday",, "T") ->  | I22: =RTD("cqg.rtd", ,"ContractData",C22, "NetLastTradeToday",, "T") ->  | J22: =IFERROR(RTD("cqg.rtd", ,"ContractData",C22, "PerCentNetLastTrade",, "T")/100,"") ->  | K22: =RTD("cqg.rtd", ,"ContractData", C22, "T_CVol",, "T") -> 862 | L22: 22 | M22: =IFERROR(RANK($J22,$J$1:J$30)+COUNTIF($J$1:J22,J22)-1,"") ->  | N22: S.US.ONTO | P22: =RTD("cqg.rtd", ,"ContractData",O22, "LongDescription",, "T") ->  | Q22: =IFERROR(RTD("cqg.rtd", ,"ContractData",O22, "PerCentNetLastTrade",, "T")/100,"") -> 
A23: S.US.QCOM | B23: 1 | C23: S.US.QCOM | D23: =RTD("cqg.rtd", ,"ContractData",C23, "LongDescription",, "T") -> QUALCOMM Inc | H23: =RTD("cqg.rtd", ,"ContractData",C23, "LastTradeToday",, "T") ->  | I23: =RTD("cqg.rtd", ,"ContractData",C23, "NetLastTradeToday",, "T") ->  | J23: =IFERROR(RTD("cqg.rtd", ,"ContractData",C23, "PerCentNetLastTrade",, "T")/100,"") ->  | K23: =RTD("cqg.rtd", ,"ContractData", C23, "T_CVol",, "T") -> 15382 | L23: 23 | M23: =IFERROR(RANK($J23,$J$1:J$30)+COUNTIF($J$1:J23,J23)-1,"") ->  | N23: S.US.QCOM | P23: =RTD("cqg.rtd", ,"ContractData",O23, "LongDescription",, "T") ->  | Q23: =IFERROR(RTD("cqg.rtd", ,"ContractData",O23, "PerCentNetLastTrade",, "T")/100,"") -> 
A24: S.US.QRVO | B24: 1 | C24: S.US.QRVO | D24: =RTD("cqg.rtd", ,"ContractData",C24, "LongDescription",, "T") -> Qorvo | H24: =RTD("cqg.rtd", ,"ContractData",C24, "LastTradeToday",, "T") ->  | I24: =RTD("cqg.rtd", ,"ContractData",C24, "NetLastTradeToday",, "T") ->  | J24: =IFERROR(RTD("cqg.rtd", ,"ContractData",C24, "PerCentNetLastTrade",, "T")/100,"") ->  | K24: =RTD("cqg.rtd", ,"ContractData", C24, "T_CVol",, "T") -> 819 | L24: 24 | M24: =IFERROR(RANK($J24,$J$1:J$30)+COUNTIF($J$1:J24,J24)-1,"") ->  | N24: S.US.QRVO | P24: =RTD("cqg.rtd", ,"ContractData",O24, "LongDescription",, "T") ->  | Q24: =IFERROR(RTD("cqg.rtd", ,"ContractData",O24, "PerCentNetLastTrade",, "T")/100,"") -> 
A25: S.US.STM | B25: 1 | C25: S.US.STM | D25: =RTD("cqg.rtd", ,"ContractData",C25, "LongDescription",, "T") -> STMicroelectronics N.V. | H25: =RTD("cqg.rtd", ,"ContractData",C25, "LastTradeToday",, "T") ->  | I25: =RTD("cqg.rtd", ,"ContractData",C25, "NetLastTradeToday",, "T") ->  | J25: =IFERROR(RTD("cqg.rtd", ,"ContractData",C25, "PerCentNetLastTrade",, "T")/100,"") ->  | K25: =RTD("cqg.rtd", ,"ContractData", C25, "T_CVol",, "T") -> 23737 | L25: 25 | M25: =IFERROR(RANK($J25,$J$1:J$30)+COUNTIF($J$1:J25,J25)-1,"") ->  | N25: S.US.STM | P25: =RTD("cqg.rtd", ,"ContractData",O25, "LongDescription",, "T") ->  | Q25: =IFERROR(RTD("cqg.rtd", ,"ContractData",O25, "PerCentNetLastTrade",, "T")/100,"") -> 
A26: S.US.SWKS | B26: 1 | C26: S.US.SWKS | D26: =RTD("cqg.rtd", ,"ContractData",C26, "LongDescription",, "T") -> Skyworks Solutions Inc | H26: =RTD("cqg.rtd", ,"ContractData",C26, "LastTradeToday",, "T") ->  | I26: =RTD("cqg.rtd", ,"ContractData",C26, "NetLastTradeToday",, "T") ->  | J26: =IFERROR(RTD("cqg.rtd", ,"ContractData",C26, "PerCentNetLastTrade",, "T")/100,"") ->  | K26: =RTD("cqg.rtd", ,"ContractData", C26, "T_CVol",, "T") -> 16 | L26: 26 | M26: =IFERROR(RANK($J26,$J$1:J$30)+COUNTIF($J$1:J26,J26)-1,"") ->  | N26: S.US.SWKS | P26: =RTD("cqg.rtd", ,"ContractData",O26, "LongDescription",, "T") ->  | Q26: =IFERROR(RTD("cqg.rtd", ,"ContractData",O26, "PerCentNetLastTrade",, "T")/100,"") -> 
A27: S.US.TER | B27: 1 | C27: S.US.TER | D27: =RTD("cqg.rtd", ,"ContractData",C27, "LongDescription",, "T") -> Teradyne Inc | H27: =RTD("cqg.rtd", ,"ContractData",C27, "LastTradeToday",, "T") ->  | I27: =RTD("cqg.rtd", ,"ContractData",C27, "NetLastTradeToday",, "T") ->  | J27: =IFERROR(RTD("cqg.rtd", ,"ContractData",C27, "PerCentNetLastTrade",, "T")/100,"") ->  | K27: =RTD("cqg.rtd", ,"ContractData", C27, "T_CVol",, "T") -> 681 | L27: 27 | M27: =IFERROR(RANK($J27,$J$1:J$30)+COUNTIF($J$1:J27,J27)-1,"") ->  | N27: S.US.TER | P27: =RTD("cqg.rtd", ,"ContractData",O27, "LongDescription",, "T") ->  | Q27: =IFERROR(RTD("cqg.rtd", ,"ContractData",O27, "PerCentNetLastTrade",, "T")/100,"") -> 
A28: S.US.TSM | B28: 1 | C28: S.US.TSM | D28: =RTD("cqg.rtd", ,"ContractData",C28, "LongDescription",, "T") -> Taiwan Semiconductor Manufacturing Co | H28: =RTD("cqg.rtd", ,"ContractData",C28, "LastTradeToday",, "T") ->  | I28: =RTD("cqg.rtd", ,"ContractData",C28, "NetLastTradeToday",, "T") ->  | J28: =IFERROR(RTD("cqg.rtd", ,"ContractData",C28, "PerCentNetLastTrade",, "T")/100,"") ->  | K28: =RTD("cqg.rtd", ,"ContractData", C28, "T_CVol",, "T") -> 110357 | L28: 28 | M28: =IFERROR(RANK($J28,$J$1:J$30)+COUNTIF($J$1:J28,J28)-1,"") ->  | N28: S.US.TSM | P28: =RTD("cqg.rtd", ,"ContractData",O28, "LongDescription",, "T") ->  | Q28: =IFERROR(RTD("cqg.rtd", ,"ContractData",O28, "PerCentNetLastTrade",, "T")/100,"") -> 
A29: S.US.TXN | B29: 1 | C29: S.US.TXN | D29: =RTD("cqg.rtd", ,"ContractData",C29, "LongDescription",, "T") -> Texas Instruments Inc | H29: =RTD("cqg.rtd", ,"ContractData",C29, "LastTradeToday",, "T") ->  | I29: =RTD("cqg.rtd", ,"ContractData",C29, "NetLastTradeToday",, "T") ->  | J29: =IFERROR(RTD("cqg.rtd", ,"ContractData",C29, "PerCentNetLastTrade",, "T")/100,"") ->  | K29: =RTD("cqg.rtd", ,"ContractData", C29, "T_CVol",, "T") -> 1056 | L29: 29 | M29: =IFERROR(RANK($J29,$J$1:J$30)+COUNTIF($J$1:J29,J29)-1,"") ->  | N29: S.US.TXN | P29: =RTD("cqg.rtd", ,"ContractData",O29, "LongDescription",, "T") ->  | Q29: =IFERROR(RTD("cqg.rtd", ,"ContractData",O29, "PerCentNetLastTrade",, "T")/100,"") -> 
A30: S.US.UMC | B30: 1 | C30: S.US.UMC | D30: =RTD("cqg.rtd", ,"ContractData",C30, "LongDescription",, "T") -> United Microelectronics Corp ADR | H30: =RTD("cqg.rtd", ,"ContractData",C30, "LastTradeToday",, "T") ->  | I30: =RTD("cqg.rtd", ,"ContractData",C30, "NetLastTradeToday",, "T") ->  | J30: =IFERROR(RTD("cqg.rtd", ,"ContractData",C30, "PerCentNetLastTrade",, "T")/100,"") ->  | K30: =RTD("cqg.rtd", ,"ContractData", C30, "T_CVol",, "T") -> 4880 | L30: 30 | M30: =IFERROR(RANK($J30,$J$1:J$30)+COUNTIF($J$1:J30,J30)-1,"") ->  | N30: S.US.UMC | P30: =RTD("cqg.rtd", ,"ContractData",O30, "LongDescription",, "T") ->  | Q30: =IFERROR(RTD("cqg.rtd", ,"ContractData",O30, "PerCentNetLastTrade",, "T")/100,"") -> 
M31: =IFERROR(RANK($J31,$J$1:J$31)+COUNTIF($J$1:J31,J31)-1,"") -> 
B32: =SUM(B1:B30)/30 -> 1
